{"text_format":"1","workbook":"xlsx","n_sheets":8,"sheets":["OPINTOKOKONAISUUDET","VUOSISUUNNITELMA","7. LUOKKA","8. LUOKKA","9. LUOKKA","TAVOITTEET","TIEDOT","LUKUVUOSITIEDOT"],"not_rendered":{"charts":0,"images":1,"macros":1,"external_links":0,"defined_names":14,"comments":0,"pivot_tables":0},"unopened":[],"bounds":{"document_bytes":16777216,"sheet_cells":100000,"rows_first":2000,"rows_last":500,"rows_between":2000,"halvings":0,"cell_chars":16384,"cell_head_chars":4096},"cells_cut":0,"cells_raw":0,"read":"whole","date_system":"1900"}

{"sheet":"OPINTOKOKONAISUUDET","index":0,"n_rows":252,"n_cols":10,"rows_kept":252,"cut":false,"hidden":false,"merged":[[3,1,4,2]]}
[]
[null,"Kuvataiteen opintokokonaisuudet"]
[]
[null,"Aloita antamalla opintokokonaisuudelle numero (1-50) ja nimi. Saat lisätietoja klikkaamalla sarakeotsikoita."]
[]
[]
[null,"OPINTOKOKONAISUUS","NIMI","TAVOITE","ARVIOINNIN KOHDE","TAVOITETEKSTI","SISÄLTÖ","TOTEUTUS","ARVIOINTITAPA","LISÄTIEDOT"]
[null,null,null,null,{"$f":"IF(ISNA(VLOOKUP(D8,TAVOITTEET!B$2:D$12,2,FALSE)) = TRUE, \"\", VLOOKUP(D8,TAVOITTEET!B$2:D$12,2,FALSE))","v":""},{"$f":"IF(ISNA(VLOOKUP(D8,TAVOITTEET!B$2:E$12,3,FALSE)) = TRUE, \"\", VLOOKUP(D8,TAVOITTEET!B$2:E$12,3,FALSE))","v":""}]
[null,null,null,null,{"$f":"IF(ISNA(VLOOKUP(D9,TAVOITTEET!B$2:D$12,2,FALSE)) = TRUE, \"\", VLOOKUP(D9,TAVOITTEET!B$2:D$12,2,FALSE))","v":""},{"$f":"IF(ISNA(VLOOKUP(D9,TAVOITTEET!B$2:E$12,3,FALSE)) = TRUE, \"\", VLOOKUP(D9,TAVOITTEET!B$2:E$12,3,FALSE))","v":""}]
[null,null,null,null,{"$f":"IF(ISNA(VLOOKUP(D10,TAVOITTEET!B$2:D$12,2,FALSE)) = TRUE, \"\", VLOOKUP(D10,TAVOITTEET!B$2:D$12,2,FALSE))","v":""},{"$f":"IF(ISNA(VLOOKUP(D10,TAVOITTEET!B$2:E$12,3,FALSE)) = TRUE, \"\", VLOOKUP(D10,TAVOITTEET!B$2:E$12,3,FALSE))","v":""}]
[null,null,null,null,{"$f":"IF(ISNA(VLOOKUP(D11,TAVOITTEET!B$2:D$12,2,FALSE)) = TRUE, \"\", VLOOKUP(D11,TAVOITTEET!B$2:D$12,2,FALSE))","v":""},{"$f":"IF(ISNA(VLOOKUP(D11,TAVOITTEET!B$2:E$12,3,FALSE)) = TRUE, \"\", VLOOKUP(D11,TAVOITTEET!B$2:E$12,3,FALSE))","v":""}]
[null,null,null,null,{"$f":"IF(ISNA(VLOOKUP(D12,TAVOITTEET!B$2:D$12,2,FALSE)) = TRUE, \"\", VLOOKUP(D12,TAVOITTEET!B$2:D$12,2,FALSE))","v":""},{"$f":"IF(ISNA(VLOOKUP(D12,TAVOITTEET!B$2:E$12,3,FALSE)) = TRUE, \"\", VLOOKUP(D12,TAVOITTEET!B$2:E$12,3,FALSE))","v":""}]
[null,null,null,null,{"$f":"IF(ISNA(VLOOKUP(D13,TAVOITTEET!B$2:D$12,2,FALSE)) = TRUE, \"\", VLOOKUP(D13,TAVOITTEET!B$2:D$12,2,FALSE))","v":""},{"$f":"IF(ISNA(VLOOKUP(D13,TAVOITTEET!B$2:E$12,3,FALSE)) = TRUE, \"\", VLOOKUP(D13,TAVOITTEET!B$2:E$12,3,FALSE))","v":""}]
[null,null,null,null,{"$f":"IF(ISNA(VLOOKUP(D14,TAVOITTEET!B$2:D$12,2,FALSE)) = TRUE, \"\", VLOOKUP(D14,TAVOITTEET!B$2:D$12,2,FALSE))","v":""},{"$f":"IF(ISNA(VLOOKUP(D14,TAVOITTEET!B$2:E$12,3,FALSE)) = TRUE, \"\", VLOOKUP(D14,TAVOITTEET!B$2:E$12,3,FALSE))","v":""}]
[null,null,null,null,{"$f":"IF(ISNA(VLOOKUP(D15,TAVOITTEET!B$2:D$12,2,FALSE)) = TRUE, \"\", VLOOKUP(D15,TAVOITTEET!B$2:D$12,2,FALSE))","v":""},{"$f":"IF(ISNA(VLOOKUP(D15,TAVOITTEET!B$2:E$12,3,FALSE)) = TRUE, \"\", VLOOKUP(D15,TAVOITTEET!B$2:E$12,3,FALSE))","v":""}]
[null,null,null,null,{"$f":"IF(ISNA(VLOOKUP(D16,TAVOITTEET!B$2:D$12,2,FALSE)) = TRUE, \"\", VLOOKUP(D16,TAVOITTEET!B$2:D$12,2,FALSE))","v":""},{"$f":"IF(ISNA(VLOOKUP(D16,TAVOITTEET!B$2:E$12,3,FALSE)) = TRUE, \"\", VLOOKUP(D16,TAVOITTEET!B$2:E$12,3,FALSE))","v":""}]
[null,null,null,null,{"$f":"IF(ISNA(VLOOKUP(D17,TAVOITTEET!B$2:D$12,2,FALSE)) = TRUE, \"\", VLOOKUP(D17,TAVOITTEET!B$2:D$12,2,FALSE))","v":""},{"$f":"IF(ISNA(VLOOKUP(D17,TAVOITTEET!B$2:E$12,3,FALSE)) = TRUE, \"\", VLOOKUP(D17,TAVOITTEET!B$2:E$12,3,FALSE))","v":""}]
[null,null,null,null,{"$f":"IF(ISNA(VLOOKUP(D18,TAVOITTEET!B$2:D$12,2,FALSE)) = TRUE, \"\", VLOOKUP(D18,TAVOITTEET!B$2:D$12,2,FALSE))","v":""},{"$f":"IF(ISNA(VLOOKUP(D18,TAVOITTEET!B$2:E$12,3,FALSE)) = TRUE, \"\", VLOOKUP(D18,TAVOITTEET!B$2:E$12,3,FALSE))","v":""}]
[null,null,null,null,{"$f":"IF(ISNA(VLOOKUP(D19,TAVOITTEET!B$2:D$12,2,FALSE)) = TRUE, \"\", VLOOKUP(D19,TAVOITTEET!B$2:D$12,2,FALSE))","v":""},{"$f":"IF(ISNA(VLOOKUP(D19,TAVOITTEET!B$2:E$12,3,FALSE)) = TRUE, \"\", VLOOKUP(D19,TAVOITTEET!B$2:E$12,3,FALSE))","v":""}]
[null,null,null,null,{"$f":"IF(ISNA(VLOOKUP(D20,TAVOITTEET!B$2:D$12,2,FALSE)) = TRUE, \"\", VLOOKUP(D20,TAVOITTEET!B$2:D$12,2,FALSE))","v":""},{"$f":"IF(ISNA(VLOOKUP(D20,TAVOITTEET!B$2:E$12,3,FALSE)) = TRUE, \"\", VLOOKUP(D20,TAVOITTEET!B$2:E$12,3,FALSE))","v":""}]
[null,null,null,null,{"$f":"IF(ISNA(VLOOKUP(D21,TAVOITTEET!B$2:D$12,2,FALSE)) = TRUE, \"\", VLOOKUP(D21,TAVOITTEET!B$2:D$12,2,FALSE))","v":""},{"$f":"IF(ISNA(VLOOKUP(D21,TAVOITTEET!B$2:E$12,3,FALSE)) = TRUE, \"\", VLOOKUP(D21,TAVOITTEET!B$2:E$12,3,FALSE))","v":""}]
[null,null,null,null,{"$f":"IF(ISNA(VLOOKUP(D22,TAVOITTEET!B$2:D$12,2,FALSE)) = TRUE, \"\", VLOOKUP(D22,TAVOITTEET!B$2:D$12,2,FALSE))","v":""},{"$f":"IF(ISNA(VLOOKUP(D22,TAVOITTEET!B$2:E$12,3,FALSE)) = TRUE, \"\", VLOOKUP(D22,TAVOITTEET!B$2:E$12,3,FALSE))","v":""}]
[null,null,null,null,{"$f":"IF(ISNA(VLOOKUP(D23,TAVOITTEET!B$2:D$12,2,FALSE)) = TRUE, \"\", VLOOKUP(D23,TAVOITTEET!B$2:D$12,2,FALSE))","v":""},{"$f":"IF(ISNA(VLOOKUP(D23,TAVOITTEET!B$2:E$12,3,FALSE)) = TRUE, \"\", VLOOKUP(D23,TAVOITTEET!B$2:E$12,3,FALSE))","v":""}]
[null,null,null,null,{"$f":"IF(ISNA(VLOOKUP(D24,TAVOITTEET!B$2:D$12,2,FALSE)) = TRUE, \"\", VLOOKUP(D24,TAVOITTEET!B$2:D$12,2,FALSE))","v":""},{"$f":"IF(ISNA(VLOOKUP(D24,TAVOITTEET!B$2:E$12,3,FALSE)) = TRUE, \"\", VLOOKUP(D24,TAVOITTEET!B$2:E$12,3,FALSE))","v":""}]
[null,null,null,null,{"$f":"IF(ISNA(VLOOKUP(D25,TAVOITTEET!B$2:D$12,2,FALSE)) = TRUE, \"\", VLOOKUP(D25,TAVOITTEET!B$2:D$12,2,FALSE))","v":""},{"$f":"IF(ISNA(VLOOKUP(D25,TAVOITTEET!B$2:E$12,3,FALSE)) = TRUE, \"\", VLOOKUP(D25,TAVOITTEET!B$2:E$12,3,FALSE))","v":""}]
[null,null,null,null,{"$f":"IF(ISNA(VLOOKUP(D26,TAVOITTEET!B$2:D$12,2,FALSE)) = TRUE, \"\", VLOOKUP(D26,TAVOITTEET!B$2:D$12,2,FALSE))","v":""},{"$f":"IF(ISNA(VLOOKUP(D26,TAVOITTEET!B$2:E$12,3,FALSE)) = TRUE, \"\", VLOOKUP(D26,TAVOITTEET!B$2:E$12,3,FALSE))","v":""}]
[null,null,null,null,{"$f":"IF(ISNA(VLOOKUP(D27,TAVOITTEET!B$2:D$12,2,FALSE)) = TRUE, \"\", VLOOKUP(D27,TAVOITTEET!B$2:D$12,2,FALSE))","v":""},{"$f":"IF(ISNA(VLOOKUP(D27,TAVOITTEET!B$2:E$12,3,FALSE)) = TRUE, \"\", VLOOKUP(D27,TAVOITTEET!B$2:E$12,3,FALSE))","v":""}]
[null,null,null,null,{"$f":"IF(ISNA(VLOOKUP(D28,TAVOITTEET!B$2:D$12,2,FALSE)) = TRUE, \"\", VLOOKUP(D28,TAVOITTEET!B$2:D$12,2,FALSE))","v":""},{"$f":"IF(ISNA(VLOOKUP(D28,TAVOITTEET!B$2:E$12,3,FALSE)) = TRUE, \"\", VLOOKUP(D28,TAVOITTEET!B$2:E$12,3,FALSE))","v":""}]
[null,null,null,null,{"$f":"IF(ISNA(VLOOKUP(D29,TAVOITTEET!B$2:D$12,2,FALSE)) = TRUE, \"\", VLOOKUP(D29,TAVOITTEET!B$2:D$12,2,FALSE))","v":""},{"$f":"IF(ISNA(VLOOKUP(D29,TAVOITTEET!B$2:E$12,3,FALSE)) = TRUE, \"\", VLOOKUP(D29,TAVOITTEET!B$2:E$12,3,FALSE))","v":""}]
[null,null,null,null,{"$f":"IF(ISNA(VLOOKUP(D30,TAVOITTEET!B$2:D$12,2,FALSE)) = TRUE, \"\", VLOOKUP(D30,TAVOITTEET!B$2:D$12,2,FALSE))","v":""},{"$f":"IF(ISNA(VLOOKUP(D30,TAVOITTEET!B$2:E$12,3,FALSE)) = TRUE, \"\", VLOOKUP(D30,TAVOITTEET!B$2:E$12,3,FALSE))","v":""}]
[null,null,null,null,{"$f":"IF(ISNA(VLOOKUP(D31,TAVOITTEET!B$2:D$12,2,FALSE)) = TRUE, \"\", VLOOKUP(D31,TAVOITTEET!B$2:D$12,2,FALSE))","v":""},{"$f":"IF(ISNA(VLOOKUP(D31,TAVOITTEET!B$2:E$12,3,FALSE)) = TRUE, \"\", VLOOKUP(D31,TAVOITTEET!B$2:E$12,3,FALSE))","v":""}]
[null,null,null,null,{"$f":"IF(ISNA(VLOOKUP(D32,TAVOITTEET!B$2:D$12,2,FALSE)) = TRUE, \"\", VLOOKUP(D32,TAVOITTEET!B$2:D$12,2,FALSE))","v":""},{"$f":"IF(ISNA(VLOOKUP(D32,TAVOITTEET!B$2:E$12,3,FALSE)) = TRUE, \"\", VLOOKUP(D32,TAVOITTEET!B$2:E$12,3,FALSE))","v":""}]
[null,null,null,null,{"$f":"IF(ISNA(VLOOKUP(D33,TAVOITTEET!B$2:D$12,2,FALSE)) = TRUE, \"\", VLOOKUP(D33,TAVOITTEET!B$2:D$12,2,FALSE))","v":""},{"$f":"IF(ISNA(VLOOKUP(D33,TAVOITTEET!B$2:E$12,3,FALSE)) = TRUE, \"\", VLOOKUP(D33,TAVOITTEET!B$2:E$12,3,FALSE))","v":""}]
[null,null,null,null,{"$f":"IF(ISNA(VLOOKUP(D34,TAVOITTEET!B$2:D$12,2,FALSE)) = TRUE, \"\", VLOOKUP(D34,TAVOITTEET!B$2:D$12,2,FALSE))","v":""},{"$f":"IF(ISNA(VLOOKUP(D34,TAVOITTEET!B$2:E$12,3,FALSE)) = TRUE, \"\", VLOOKUP(D34,TAVOITTEET!B$2:E$12,3,FALSE))","v":""}]
[null,null,null,null,{"$f":"IF(ISNA(VLOOKUP(D35,TAVOITTEET!B$2:D$12,2,FALSE)) = TRUE, \"\", VLOOKUP(D35,TAVOITTEET!B$2:D$12,2,FALSE))","v":""},{"$f":"IF(ISNA(VLOOKUP(D35,TAVOITTEET!B$2:E$12,3,FALSE)) = TRUE, \"\", VLOOKUP(D35,TAVOITTEET!B$2:E$12,3,FALSE))","v":""}]
[null,null,null,null,{"$f":"IF(ISNA(VLOOKUP(D36,TAVOITTEET!B$2:D$12,2,FALSE)) = TRUE, \"\", VLOOKUP(D36,TAVOITTEET!B$2:D$12,2,FALSE))","v":""},{"$f":"IF(ISNA(VLOOKUP(D36,TAVOITTEET!B$2:E$12,3,FALSE)) = TRUE, \"\", VLOOKUP(D36,TAVOITTEET!B$2:E$12,3,FALSE))","v":""}]
[null,null,null,null,{"$f":"IF(ISNA(VLOOKUP(D37,TAVOITTEET!B$2:D$12,2,FALSE)) = TRUE, \"\", VLOOKUP(D37,TAVOITTEET!B$2:D$12,2,FALSE))","v":""},{"$f":"IF(ISNA(VLOOKUP(D37,TAVOITTEET!B$2:E$12,3,FALSE)) = TRUE, \"\", VLOOKUP(D37,TAVOITTEET!B$2:E$12,3,FALSE))","v":""}]
[null,null,null,null,{"$f":"IF(ISNA(VLOOKUP(D38,TAVOITTEET!B$2:D$12,2,FALSE)) = TRUE, \"\", VLOOKUP(D38,TAVOITTEET!B$2:D$12,2,FALSE))","v":""},{"$f":"IF(ISNA(VLOOKUP(D38,TAVOITTEET!B$2:E$12,3,FALSE)) = TRUE, \"\", VLOOKUP(D38,TAVOITTEET!B$2:E$12,3,FALSE))","v":""}]
[null,null,null,null,{"$f":"IF(ISNA(VLOOKUP(D39,TAVOITTEET!B$2:D$12,2,FALSE)) = TRUE, \"\", VLOOKUP(D39,TAVOITTEET!B$2:D$12,2,FALSE))","v":""},{"$f":"IF(ISNA(VLOOKUP(D39,TAVOITTEET!B$2:E$12,3,FALSE)) = TRUE, \"\", VLOOKUP(D39,TAVOITTEET!B$2:E$12,3,FALSE))","v":""}]
[null,null,null,null,{"$f":"IF(ISNA(VLOOKUP(D40,TAVOITTEET!B$2:D$12,2,FALSE)) = TRUE, \"\", VLOOKUP(D40,TAVOITTEET!B$2:D$12,2,FALSE))","v":""},{"$f":"IF(ISNA(VLOOKUP(D40,TAVOITTEET!B$2:E$12,3,FALSE)) = TRUE, \"\", VLOOKUP(D40,TAVOITTEET!B$2:E$12,3,FALSE))","v":""}]
[null,null,null,null,{"$f":"IF(ISNA(VLOOKUP(D41,TAVOITTEET!B$2:D$12,2,FALSE)) = TRUE, \"\", VLOOKUP(D41,TAVOITTEET!B$2:D$12,2,FALSE))","v":""},{"$f":"IF(ISNA(VLOOKUP(D41,TAVOITTEET!B$2:E$12,3,FALSE)) = TRUE, \"\", VLOOKUP(D41,TAVOITTEET!B$2:E$12,3,FALSE))","v":""}]
[null,null,null,null,{"$f":"IF(ISNA(VLOOKUP(D42,TAVOITTEET!B$2:D$12,2,FALSE)) = TRUE, \"\", VLOOKUP(D42,TAVOITTEET!B$2:D$12,2,FALSE))","v":""},{"$f":"IF(ISNA(VLOOKUP(D42,TAVOITTEET!B$2:E$12,3,FALSE)) = TRUE, \"\", VLOOKUP(D42,TAVOITTEET!B$2:E$12,3,FALSE))","v":""}]
[null,null,null,null,{"$f":"IF(ISNA(VLOOKUP(D43,TAVOITTEET!B$2:D$12,2,FALSE)) = TRUE, \"\", VLOOKUP(D43,TAVOITTEET!B$2:D$12,2,FALSE))","v":""},{"$f":"IF(ISNA(VLOOKUP(D43,TAVOITTEET!B$2:E$12,3,FALSE)) = TRUE, \"\", VLOOKUP(D43,TAVOITTEET!B$2:E$12,3,FALSE))","v":""}]
[null,null,null,null,{"$f":"IF(ISNA(VLOOKUP(D44,TAVOITTEET!B$2:D$12,2,FALSE)) = TRUE, \"\", VLOOKUP(D44,TAVOITTEET!B$2:D$12,2,FALSE))","v":""},{"$f":"IF(ISNA(VLOOKUP(D44,TAVOITTEET!B$2:E$12,3,FALSE)) = TRUE, \"\", VLOOKUP(D44,TAVOITTEET!B$2:E$12,3,FALSE))","v":""}]
[null,null,null,null,{"$f":"IF(ISNA(VLOOKUP(D45,TAVOITTEET!B$2:D$12,2,FALSE)) = TRUE, \"\", VLOOKUP(D45,TAVOITTEET!B$2:D$12,2,FALSE))","v":""},{"$f":"IF(ISNA(VLOOKUP(D45,TAVOITTEET!B$2:E$12,3,FALSE)) = TRUE, \"\", VLOOKUP(D45,TAVOITTEET!B$2:E$12,3,FALSE))","v":""}]
[null,null,null,null,{"$f":"IF(ISNA(VLOOKUP(D46,TAVOITTEET!B$2:D$12,2,FALSE)) = TRUE, \"\", VLOOKUP(D46,TAVOITTEET!B$2:D$12,2,FALSE))","v":""},{"$f":"IF(ISNA(VLOOKUP(D46,TAVOITTEET!B$2:E$12,3,FALSE)) = TRUE, \"\", VLOOKUP(D46,TAVOITTEET!B$2:E$12,3,FALSE))","v":""}]
[null,null,null,null,{"$f":"IF(ISNA(VLOOKUP(D47,TAVOITTEET!B$2:D$12,2,FALSE)) = TRUE, \"\", VLOOKUP(D47,TAVOITTEET!B$2:D$12,2,FALSE))","v":""},{"$f":"IF(ISNA(VLOOKUP(D47,TAVOITTEET!B$2:E$12,3,FALSE)) = TRUE, \"\", VLOOKUP(D47,TAVOITTEET!B$2:E$12,3,FALSE))","v":""}]
[null,null,null,null,{"$f":"IF(ISNA(VLOOKUP(D48,TAVOITTEET!B$2:D$12,2,FALSE)) = TRUE, \"\", VLOOKUP(D48,TAVOITTEET!B$2:D$12,2,FALSE))","v":""},{"$f":"IF(ISNA(VLOOKUP(D48,TAVOITTEET!B$2:E$12,3,FALSE)) = TRUE, \"\", VLOOKUP(D48,TAVOITTEET!B$2:E$12,3,FALSE))","v":""}]
[null,null,null,null,{"$f":"IF(ISNA(VLOOKUP(D49,TAVOITTEET!B$2:D$12,2,FALSE)) = TRUE, \"\", VLOOKUP(D49,TAVOITTEET!B$2:D$12,2,FALSE))","v":""},{"$f":"IF(ISNA(VLOOKUP(D49,TAVOITTEET!B$2:E$12,3,FALSE)) = TRUE, \"\", VLOOKUP(D49,TAVOITTEET!B$2:E$12,3,FALSE))","v":""}]
[null,null,null,null,{"$f":"IF(ISNA(VLOOKUP(D50,TAVOITTEET!B$2:D$12,2,FALSE)) = TRUE, \"\", VLOOKUP(D50,TAVOITTEET!B$2:D$12,2,FALSE))","v":""},{"$f":"IF(ISNA(VLOOKUP(D50,TAVOITTEET!B$2:E$12,3,FALSE)) = TRUE, \"\", VLOOKUP(D50,TAVOITTEET!B$2:E$12,3,FALSE))","v":""}]
[null,null,null,null,{"$f":"IF(ISNA(VLOOKUP(D51,TAVOITTEET!B$2:D$12,2,FALSE)) = TRUE, \"\", VLOOKUP(D51,TAVOITTEET!B$2:D$12,2,FALSE))","v":""},{"$f":"IF(ISNA(VLOOKUP(D51,TAVOITTEET!B$2:E$12,3,FALSE)) = TRUE, \"\", VLOOKUP(D51,TAVOITTEET!B$2:E$12,3,FALSE))","v":""}]
[null,null,null,null,{"$f":"IF(ISNA(VLOOKUP(D52,TAVOITTEET!B$2:D$12,2,FALSE)) = TRUE, \"\", VLOOKUP(D52,TAVOITTEET!B$2:D$12,2,FALSE))","v":""},{"$f":"IF(ISNA(VLOOKUP(D52,TAVOITTEET!B$2:E$12,3,FALSE)) = TRUE, \"\", VLOOKUP(D52,TAVOITTEET!B$2:E$12,3,FALSE))","v":""}]
[null,null,null,null,{"$f":"IF(ISNA(VLOOKUP(D53,TAVOITTEET!B$2:D$12,2,FALSE)) = TRUE, \"\", VLOOKUP(D53,TAVOITTEET!B$2:D$12,2,FALSE))","v":""},{"$f":"IF(ISNA(VLOOKUP(D53,TAVOITTEET!B$2:E$12,3,FALSE)) = TRUE, \"\", VLOOKUP(D53,TAVOITTEET!B$2:E$12,3,FALSE))","v":""}]
[null,null,null,null,{"$f":"IF(ISNA(VLOOKUP(D54,TAVOITTEET!B$2:D$12,2,FALSE)) = TRUE, \"\", VLOOKUP(D54,TAVOITTEET!B$2:D$12,2,FALSE))","v":""},{"$f":"IF(ISNA(VLOOKUP(D54,TAVOITTEET!B$2:E$12,3,FALSE)) = TRUE, \"\", VLOOKUP(D54,TAVOITTEET!B$2:E$12,3,FALSE))","v":""}]
[null,null,null,null,{"$f":"IF(ISNA(VLOOKUP(D55,TAVOITTEET!B$2:D$12,2,FALSE)) = TRUE, \"\", VLOOKUP(D55,TAVOITTEET!B$2:D$12,2,FALSE))","v":""},{"$f":"IF(ISNA(VLOOKUP(D55,TAVOITTEET!B$2:E$12,3,FALSE)) = TRUE, \"\", VLOOKUP(D55,TAVOITTEET!B$2:E$12,3,FALSE))","v":""}]
[null,null,null,null,{"$f":"IF(ISNA(VLOOKUP(D56,TAVOITTEET!B$2:D$12,2,FALSE)) = TRUE, \"\", VLOOKUP(D56,TAVOITTEET!B$2:D$12,2,FALSE))","v":""},{"$f":"IF(ISNA(VLOOKUP(D56,TAVOITTEET!B$2:E$12,3,FALSE)) = TRUE, \"\", VLOOKUP(D56,TAVOITTEET!B$2:E$12,3,FALSE))","v":""}]
[null,null,null,null,{"$f":"IF(ISNA(VLOOKUP(D57,TAVOITTEET!B$2:D$12,2,FALSE)) = TRUE, \"\", VLOOKUP(D57,TAVOITTEET!B$2:D$12,2,FALSE))","v":""},{"$f":"IF(ISNA(VLOOKUP(D57,TAVOITTEET!B$2:E$12,3,FALSE)) = TRUE, \"\", VLOOKUP(D57,TAVOITTEET!B$2:E$12,3,FALSE))","v":""}]
[null,null,null,null,{"$f":"IF(ISNA(VLOOKUP(D58,TAVOITTEET!B$2:D$12,2,FALSE)) = TRUE, \"\", VLOOKUP(D58,TAVOITTEET!B$2:D$12,2,FALSE))","v":""},{"$f":"IF(ISNA(VLOOKUP(D58,TAVOITTEET!B$2:E$12,3,FALSE)) = TRUE, \"\", VLOOKUP(D58,TAVOITTEET!B$2:E$12,3,FALSE))","v":""}]
[null,null,null,null,{"$f":"IF(ISNA(VLOOKUP(D59,TAVOITTEET!B$2:D$12,2,FALSE)) = TRUE, \"\", VLOOKUP(D59,TAVOITTEET!B$2:D$12,2,FALSE))","v":""},{"$f":"IF(ISNA(VLOOKUP(D59,TAVOITTEET!B$2:E$12,3,FALSE)) = TRUE, \"\", VLOOKUP(D59,TAVOITTEET!B$2:E$12,3,FALSE))","v":""}]
[null,null,null,null,{"$f":"IF(ISNA(VLOOKUP(D60,TAVOITTEET!B$2:D$12,2,FALSE)) = TRUE, \"\", VLOOKUP(D60,TAVOITTEET!B$2:D$12,2,FALSE))","v":""},{"$f":"IF(ISNA(VLOOKUP(D60,TAVOITTEET!B$2:E$12,3,FALSE)) = TRUE, \"\", VLOOKUP(D60,TAVOITTEET!B$2:E$12,3,FALSE))","v":""}]
[null,null,null,null,{"$f":"IF(ISNA(VLOOKUP(D61,TAVOITTEET!B$2:D$12,2,FALSE)) = TRUE, \"\", VLOOKUP(D61,TAVOITTEET!B$2:D$12,2,FALSE))","v":""},{"$f":"IF(ISNA(VLOOKUP(D61,TAVOITTEET!B$2:E$12,3,FALSE)) = TRUE, \"\", VLOOKUP(D61,TAVOITTEET!B$2:E$12,3,FALSE))","v":""}]
[null,null,null,null,{"$f":"IF(ISNA(VLOOKUP(D62,TAVOITTEET!B$2:D$12,2,FALSE)) = TRUE, \"\", VLOOKUP(D62,TAVOITTEET!B$2:D$12,2,FALSE))","v":""},{"$f":"IF(ISNA(VLOOKUP(D62,TAVOITTEET!B$2:E$12,3,FALSE)) = TRUE, \"\", VLOOKUP(D62,TAVOITTEET!B$2:E$12,3,FALSE))","v":""}]
[null,null,null,null,{"$f":"IF(ISNA(VLOOKUP(D63,TAVOITTEET!B$2:D$12,2,FALSE)) = TRUE, \"\", VLOOKUP(D63,TAVOITTEET!B$2:D$12,2,FALSE))","v":""},{"$f":"IF(ISNA(VLOOKUP(D63,TAVOITTEET!B$2:E$12,3,FALSE)) = TRUE, \"\", VLOOKUP(D63,TAVOITTEET!B$2:E$12,3,FALSE))","v":""}]
[null,null,null,null,{"$f":"IF(ISNA(VLOOKUP(D64,TAVOITTEET!B$2:D$12,2,FALSE)) = TRUE, \"\", VLOOKUP(D64,TAVOITTEET!B$2:D$12,2,FALSE))","v":""},{"$f":"IF(ISNA(VLOOKUP(D64,TAVOITTEET!B$2:E$12,3,FALSE)) = TRUE, \"\", VLOOKUP(D64,TAVOITTEET!B$2:E$12,3,FALSE))","v":""}]
[null,null,null,null,{"$f":"IF(ISNA(VLOOKUP(D65,TAVOITTEET!B$2:D$12,2,FALSE)) = TRUE, \"\", VLOOKUP(D65,TAVOITTEET!B$2:D$12,2,FALSE))","v":""},{"$f":"IF(ISNA(VLOOKUP(D65,TAVOITTEET!B$2:E$12,3,FALSE)) = TRUE, \"\", VLOOKUP(D65,TAVOITTEET!B$2:E$12,3,FALSE))","v":""}]
[null,null,null,null,{"$f":"IF(ISNA(VLOOKUP(D66,TAVOITTEET!B$2:D$12,2,FALSE)) = TRUE, \"\", VLOOKUP(D66,TAVOITTEET!B$2:D$12,2,FALSE))","v":""},{"$f":"IF(ISNA(VLOOKUP(D66,TAVOITTEET!B$2:E$12,3,FALSE)) = TRUE, \"\", VLOOKUP(D66,TAVOITTEET!B$2:E$12,3,FALSE))","v":""}]
[null,null,null,null,{"$f":"IF(ISNA(VLOOKUP(D67,TAVOITTEET!B$2:D$12,2,FALSE)) = TRUE, \"\", VLOOKUP(D67,TAVOITTEET!B$2:D$12,2,FALSE))","v":""},{"$f":"IF(ISNA(VLOOKUP(D67,TAVOITTEET!B$2:E$12,3,FALSE)) = TRUE, \"\", VLOOKUP(D67,TAVOITTEET!B$2:E$12,3,FALSE))","v":""}]
[null,null,null,null,{"$f":"IF(ISNA(VLOOKUP(D68,TAVOITTEET!B$2:D$12,2,FALSE)) = TRUE, \"\", VLOOKUP(D68,TAVOITTEET!B$2:D$12,2,FALSE))","v":""},{"$f":"IF(ISNA(VLOOKUP(D68,TAVOITTEET!B$2:E$12,3,FALSE)) = TRUE, \"\", VLOOKUP(D68,TAVOITTEET!B$2:E$12,3,FALSE))","v":""}]
[null,null,null,null,{"$f":"IF(ISNA(VLOOKUP(D69,TAVOITTEET!B$2:D$12,2,FALSE)) = TRUE, \"\", VLOOKUP(D69,TAVOITTEET!B$2:D$12,2,FALSE))","v":""},{"$f":"IF(ISNA(VLOOKUP(D69,TAVOITTEET!B$2:E$12,3,FALSE)) = TRUE, \"\", VLOOKUP(D69,TAVOITTEET!B$2:E$12,3,FALSE))","v":""}]
[null,null,null,null,{"$f":"IF(ISNA(VLOOKUP(D70,TAVOITTEET!B$2:D$12,2,FALSE)) = TRUE, \"\", VLOOKUP(D70,TAVOITTEET!B$2:D$12,2,FALSE))","v":""},{"$f":"IF(ISNA(VLOOKUP(D70,TAVOITTEET!B$2:E$12,3,FALSE)) = TRUE, \"\", VLOOKUP(D70,TAVOITTEET!B$2:E$12,3,FALSE))","v":""}]
[null,null,null,null,{"$f":"IF(ISNA(VLOOKUP(D71,TAVOITTEET!B$2:D$12,2,FALSE)) = TRUE, \"\", VLOOKUP(D71,TAVOITTEET!B$2:D$12,2,FALSE))","v":""},{"$f":"IF(ISNA(VLOOKUP(D71,TAVOITTEET!B$2:E$12,3,FALSE)) = TRUE, \"\", VLOOKUP(D71,TAVOITTEET!B$2:E$12,3,FALSE))","v":""}]
[null,null,null,null,{"$f":"IF(ISNA(VLOOKUP(D72,TAVOITTEET!B$2:D$12,2,FALSE)) = TRUE, \"\", VLOOKUP(D72,TAVOITTEET!B$2:D$12,2,FALSE))","v":""},{"$f":"IF(ISNA(VLOOKUP(D72,TAVOITTEET!B$2:E$12,3,FALSE)) = TRUE, \"\", VLOOKUP(D72,TAVOITTEET!B$2:E$12,3,FALSE))","v":""}]
[null,null,null,null,{"$f":"IF(ISNA(VLOOKUP(D73,TAVOITTEET!B$2:D$12,2,FALSE)) = TRUE, \"\", VLOOKUP(D73,TAVOITTEET!B$2:D$12,2,FALSE))","v":""},{"$f":"IF(ISNA(VLOOKUP(D73,TAVOITTEET!B$2:E$12,3,FALSE)) = TRUE, \"\", VLOOKUP(D73,TAVOITTEET!B$2:E$12,3,FALSE))","v":""}]
[null,null,null,null,{"$f":"IF(ISNA(VLOOKUP(D74,TAVOITTEET!B$2:D$12,2,FALSE)) = TRUE, \"\", VLOOKUP(D74,TAVOITTEET!B$2:D$12,2,FALSE))","v":""},{"$f":"IF(ISNA(VLOOKUP(D74,TAVOITTEET!B$2:E$12,3,FALSE)) = TRUE, \"\", VLOOKUP(D74,TAVOITTEET!B$2:E$12,3,FALSE))","v":""}]
[null,null,null,null,{"$f":"IF(ISNA(VLOOKUP(D75,TAVOITTEET!B$2:D$12,2,FALSE)) = TRUE, \"\", VLOOKUP(D75,TAVOITTEET!B$2:D$12,2,FALSE))","v":""},{"$f":"IF(ISNA(VLOOKUP(D75,TAVOITTEET!B$2:E$12,3,FALSE)) = TRUE, \"\", VLOOKUP(D75,TAVOITTEET!B$2:E$12,3,FALSE))","v":""}]
[null,null,null,null,{"$f":"IF(ISNA(VLOOKUP(D76,TAVOITTEET!B$2:D$12,2,FALSE)) = TRUE, \"\", VLOOKUP(D76,TAVOITTEET!B$2:D$12,2,FALSE))","v":""},{"$f":"IF(ISNA(VLOOKUP(D76,TAVOITTEET!B$2:E$12,3,FALSE)) = TRUE, \"\", VLOOKUP(D76,TAVOITTEET!B$2:E$12,3,FALSE))","v":""}]
[null,null,null,null,{"$f":"IF(ISNA(VLOOKUP(D77,TAVOITTEET!B$2:D$12,2,FALSE)) = TRUE, \"\", VLOOKUP(D77,TAVOITTEET!B$2:D$12,2,FALSE))","v":""},{"$f":"IF(ISNA(VLOOKUP(D77,TAVOITTEET!B$2:E$12,3,FALSE)) = TRUE, \"\", VLOOKUP(D77,TAVOITTEET!B$2:E$12,3,FALSE))","v":""}]
[null,null,null,null,{"$f":"IF(ISNA(VLOOKUP(D78,TAVOITTEET!B$2:D$12,2,FALSE)) = TRUE, \"\", VLOOKUP(D78,TAVOITTEET!B$2:D$12,2,FALSE))","v":""},{"$f":"IF(ISNA(VLOOKUP(D78,TAVOITTEET!B$2:E$12,3,FALSE)) = TRUE, \"\", VLOOKUP(D78,TAVOITTEET!B$2:E$12,3,FALSE))","v":""}]
[null,null,null,null,{"$f":"IF(ISNA(VLOOKUP(D79,TAVOITTEET!B$2:D$12,2,FALSE)) = TRUE, \"\", VLOOKUP(D79,TAVOITTEET!B$2:D$12,2,FALSE))","v":""},{"$f":"IF(ISNA(VLOOKUP(D79,TAVOITTEET!B$2:E$12,3,FALSE)) = TRUE, \"\", VLOOKUP(D79,TAVOITTEET!B$2:E$12,3,FALSE))","v":""}]
[null,null,null,null,{"$f":"IF(ISNA(VLOOKUP(D80,TAVOITTEET!B$2:D$12,2,FALSE)) = TRUE, \"\", VLOOKUP(D80,TAVOITTEET!B$2:D$12,2,FALSE))","v":""},{"$f":"IF(ISNA(VLOOKUP(D80,TAVOITTEET!B$2:E$12,3,FALSE)) = TRUE, \"\", VLOOKUP(D80,TAVOITTEET!B$2:E$12,3,FALSE))","v":""}]
[null,null,null,null,{"$f":"IF(ISNA(VLOOKUP(D81,TAVOITTEET!B$2:D$12,2,FALSE)) = TRUE, \"\", VLOOKUP(D81,TAVOITTEET!B$2:D$12,2,FALSE))","v":""},{"$f":"IF(ISNA(VLOOKUP(D81,TAVOITTEET!B$2:E$12,3,FALSE)) = TRUE, \"\", VLOOKUP(D81,TAVOITTEET!B$2:E$12,3,FALSE))","v":""}]
[null,null,null,null,{"$f":"IF(ISNA(VLOOKUP(D82,TAVOITTEET!B$2:D$12,2,FALSE)) = TRUE, \"\", VLOOKUP(D82,TAVOITTEET!B$2:D$12,2,FALSE))","v":""},{"$f":"IF(ISNA(VLOOKUP(D82,TAVOITTEET!B$2:E$12,3,FALSE)) = TRUE, \"\", VLOOKUP(D82,TAVOITTEET!B$2:E$12,3,FALSE))","v":""}]
[null,null,null,null,{"$f":"IF(ISNA(VLOOKUP(D83,TAVOITTEET!B$2:D$12,2,FALSE)) = TRUE, \"\", VLOOKUP(D83,TAVOITTEET!B$2:D$12,2,FALSE))","v":""},{"$f":"IF(ISNA(VLOOKUP(D83,TAVOITTEET!B$2:E$12,3,FALSE)) = TRUE, \"\", VLOOKUP(D83,TAVOITTEET!B$2:E$12,3,FALSE))","v":""}]
[null,null,null,null,{"$f":"IF(ISNA(VLOOKUP(D84,TAVOITTEET!B$2:D$12,2,FALSE)) = TRUE, \"\", VLOOKUP(D84,TAVOITTEET!B$2:D$12,2,FALSE))","v":""},{"$f":"IF(ISNA(VLOOKUP(D84,TAVOITTEET!B$2:E$12,3,FALSE)) = TRUE, \"\", VLOOKUP(D84,TAVOITTEET!B$2:E$12,3,FALSE))","v":""}]
[null,null,null,null,{"$f":"IF(ISNA(VLOOKUP(D85,TAVOITTEET!B$2:D$12,2,FALSE)) = TRUE, \"\", VLOOKUP(D85,TAVOITTEET!B$2:D$12,2,FALSE))","v":""},{"$f":"IF(ISNA(VLOOKUP(D85,TAVOITTEET!B$2:E$12,3,FALSE)) = TRUE, \"\", VLOOKUP(D85,TAVOITTEET!B$2:E$12,3,FALSE))","v":""}]
[null,null,null,null,{"$f":"IF(ISNA(VLOOKUP(D86,TAVOITTEET!B$2:D$12,2,FALSE)) = TRUE, \"\", VLOOKUP(D86,TAVOITTEET!B$2:D$12,2,FALSE))","v":""},{"$f":"IF(ISNA(VLOOKUP(D86,TAVOITTEET!B$2:E$12,3,FALSE)) = TRUE, \"\", VLOOKUP(D86,TAVOITTEET!B$2:E$12,3,FALSE))","v":""}]
[null,null,null,null,{"$f":"IF(ISNA(VLOOKUP(D87,TAVOITTEET!B$2:D$12,2,FALSE)) = TRUE, \"\", VLOOKUP(D87,TAVOITTEET!B$2:D$12,2,FALSE))","v":""},{"$f":"IF(ISNA(VLOOKUP(D87,TAVOITTEET!B$2:E$12,3,FALSE)) = TRUE, \"\", VLOOKUP(D87,TAVOITTEET!B$2:E$12,3,FALSE))","v":""}]
[null,null,null,null,{"$f":"IF(ISNA(VLOOKUP(D88,TAVOITTEET!B$2:D$12,2,FALSE)) = TRUE, \"\", VLOOKUP(D88,TAVOITTEET!B$2:D$12,2,FALSE))","v":""},{"$f":"IF(ISNA(VLOOKUP(D88,TAVOITTEET!B$2:E$12,3,FALSE)) = TRUE, \"\", VLOOKUP(D88,TAVOITTEET!B$2:E$12,3,FALSE))","v":""}]
[null,null,null,null,{"$f":"IF(ISNA(VLOOKUP(D89,TAVOITTEET!B$2:D$12,2,FALSE)) = TRUE, \"\", VLOOKUP(D89,TAVOITTEET!B$2:D$12,2,FALSE))","v":""},{"$f":"IF(ISNA(VLOOKUP(D89,TAVOITTEET!B$2:E$12,3,FALSE)) = TRUE, \"\", VLOOKUP(D89,TAVOITTEET!B$2:E$12,3,FALSE))","v":""}]
[null,null,null,null,{"$f":"IF(ISNA(VLOOKUP(D90,TAVOITTEET!B$2:D$12,2,FALSE)) = TRUE, \"\", VLOOKUP(D90,TAVOITTEET!B$2:D$12,2,FALSE))","v":""},{"$f":"IF(ISNA(VLOOKUP(D90,TAVOITTEET!B$2:E$12,3,FALSE)) = TRUE, \"\", VLOOKUP(D90,TAVOITTEET!B$2:E$12,3,FALSE))","v":""}]
[null,null,null,null,{"$f":"IF(ISNA(VLOOKUP(D91,TAVOITTEET!B$2:D$12,2,FALSE)) = TRUE, \"\", VLOOKUP(D91,TAVOITTEET!B$2:D$12,2,FALSE))","v":""},{"$f":"IF(ISNA(VLOOKUP(D91,TAVOITTEET!B$2:E$12,3,FALSE)) = TRUE, \"\", VLOOKUP(D91,TAVOITTEET!B$2:E$12,3,FALSE))","v":""}]
[null,null,null,null,{"$f":"IF(ISNA(VLOOKUP(D92,TAVOITTEET!B$2:D$12,2,FALSE)) = TRUE, \"\", VLOOKUP(D92,TAVOITTEET!B$2:D$12,2,FALSE))","v":""},{"$f":"IF(ISNA(VLOOKUP(D92,TAVOITTEET!B$2:E$12,3,FALSE)) = TRUE, \"\", VLOOKUP(D92,TAVOITTEET!B$2:E$12,3,FALSE))","v":""}]
[null,null,null,null,{"$f":"IF(ISNA(VLOOKUP(D93,TAVOITTEET!B$2:D$12,2,FALSE)) = TRUE, \"\", VLOOKUP(D93,TAVOITTEET!B$2:D$12,2,FALSE))","v":""},{"$f":"IF(ISNA(VLOOKUP(D93,TAVOITTEET!B$2:E$12,3,FALSE)) = TRUE, \"\", VLOOKUP(D93,TAVOITTEET!B$2:E$12,3,FALSE))","v":""}]
[null,null,null,null,{"$f":"IF(ISNA(VLOOKUP(D94,TAVOITTEET!B$2:D$12,2,FALSE)) = TRUE, \"\", VLOOKUP(D94,TAVOITTEET!B$2:D$12,2,FALSE))","v":""},{"$f":"IF(ISNA(VLOOKUP(D94,TAVOITTEET!B$2:E$12,3,FALSE)) = TRUE, \"\", VLOOKUP(D94,TAVOITTEET!B$2:E$12,3,FALSE))","v":""}]
[null,null,null,null,{"$f":"IF(ISNA(VLOOKUP(D95,TAVOITTEET!B$2:D$12,2,FALSE)) = TRUE, \"\", VLOOKUP(D95,TAVOITTEET!B$2:D$12,2,FALSE))","v":""},{"$f":"IF(ISNA(VLOOKUP(D95,TAVOITTEET!B$2:E$12,3,FALSE)) = TRUE, \"\", VLOOKUP(D95,TAVOITTEET!B$2:E$12,3,FALSE))","v":""}]
[null,null,null,null,{"$f":"IF(ISNA(VLOOKUP(D96,TAVOITTEET!B$2:D$12,2,FALSE)) = TRUE, \"\", VLOOKUP(D96,TAVOITTEET!B$2:D$12,2,FALSE))","v":""},{"$f":"IF(ISNA(VLOOKUP(D96,TAVOITTEET!B$2:E$12,3,FALSE)) = TRUE, \"\", VLOOKUP(D96,TAVOITTEET!B$2:E$12,3,FALSE))","v":""}]
[null,null,null,null,{"$f":"IF(ISNA(VLOOKUP(D97,TAVOITTEET!B$2:D$12,2,FALSE)) = TRUE, \"\", VLOOKUP(D97,TAVOITTEET!B$2:D$12,2,FALSE))","v":""},{"$f":"IF(ISNA(VLOOKUP(D97,TAVOITTEET!B$2:E$12,3,FALSE)) = TRUE, \"\", VLOOKUP(D97,TAVOITTEET!B$2:E$12,3,FALSE))","v":""}]
[null,null,null,null,{"$f":"IF(ISNA(VLOOKUP(D98,TAVOITTEET!B$2:D$12,2,FALSE)) = TRUE, \"\", VLOOKUP(D98,TAVOITTEET!B$2:D$12,2,FALSE))","v":""},{"$f":"IF(ISNA(VLOOKUP(D98,TAVOITTEET!B$2:E$12,3,FALSE)) = TRUE, \"\", VLOOKUP(D98,TAVOITTEET!B$2:E$12,3,FALSE))","v":""}]
[null,null,null,null,{"$f":"IF(ISNA(VLOOKUP(D99,TAVOITTEET!B$2:D$12,2,FALSE)) = TRUE, \"\", VLOOKUP(D99,TAVOITTEET!B$2:D$12,2,FALSE))","v":""},{"$f":"IF(ISNA(VLOOKUP(D99,TAVOITTEET!B$2:E$12,3,FALSE)) = TRUE, \"\", VLOOKUP(D99,TAVOITTEET!B$2:E$12,3,FALSE))","v":""}]
[null,null,null,null,{"$f":"IF(ISNA(VLOOKUP(D100,TAVOITTEET!B$2:D$12,2,FALSE)) = TRUE, \"\", VLOOKUP(D100,TAVOITTEET!B$2:D$12,2,FALSE))","v":""},{"$f":"IF(ISNA(VLOOKUP(D100,TAVOITTEET!B$2:E$12,3,FALSE)) = TRUE, \"\", VLOOKUP(D100,TAVOITTEET!B$2:E$12,3,FALSE))","v":""}]
[null,null,null,null,{"$f":"IF(ISNA(VLOOKUP(D101,TAVOITTEET!B$2:D$12,2,FALSE)) = TRUE, \"\", VLOOKUP(D101,TAVOITTEET!B$2:D$12,2,FALSE))","v":""},{"$f":"IF(ISNA(VLOOKUP(D101,TAVOITTEET!B$2:E$12,3,FALSE)) = TRUE, \"\", VLOOKUP(D101,TAVOITTEET!B$2:E$12,3,FALSE))","v":""}]
[null,null,null,null,{"$f":"IF(ISNA(VLOOKUP(D102,TAVOITTEET!B$2:D$12,2,FALSE)) = TRUE, \"\", VLOOKUP(D102,TAVOITTEET!B$2:D$12,2,FALSE))","v":""},{"$f":"IF(ISNA(VLOOKUP(D102,TAVOITTEET!B$2:E$12,3,FALSE)) = TRUE, \"\", VLOOKUP(D102,TAVOITTEET!B$2:E$12,3,FALSE))","v":""}]
[null,null,null,null,{"$f":"IF(ISNA(VLOOKUP(D103,TAVOITTEET!B$2:D$12,2,FALSE)) = TRUE, \"\", VLOOKUP(D103,TAVOITTEET!B$2:D$12,2,FALSE))","v":""},{"$f":"IF(ISNA(VLOOKUP(D103,TAVOITTEET!B$2:E$12,3,FALSE)) = TRUE, \"\", VLOOKUP(D103,TAVOITTEET!B$2:E$12,3,FALSE))","v":""}]
[null,null,null,null,{"$f":"IF(ISNA(VLOOKUP(D104,TAVOITTEET!B$2:D$12,2,FALSE)) = TRUE, \"\", VLOOKUP(D104,TAVOITTEET!B$2:D$12,2,FALSE))","v":""},{"$f":"IF(ISNA(VLOOKUP(D104,TAVOITTEET!B$2:E$12,3,FALSE)) = TRUE, \"\", VLOOKUP(D104,TAVOITTEET!B$2:E$12,3,FALSE))","v":""}]
[null,null,null,null,{"$f":"IF(ISNA(VLOOKUP(D105,TAVOITTEET!B$2:D$12,2,FALSE)) = TRUE, \"\", VLOOKUP(D105,TAVOITTEET!B$2:D$12,2,FALSE))","v":""},{"$f":"IF(ISNA(VLOOKUP(D105,TAVOITTEET!B$2:E$12,3,FALSE)) = TRUE, \"\", VLOOKUP(D105,TAVOITTEET!B$2:E$12,3,FALSE))","v":""}]
[null,null,null,null,{"$f":"IF(ISNA(VLOOKUP(D106,TAVOITTEET!B$2:D$12,2,FALSE)) = TRUE, \"\", VLOOKUP(D106,TAVOITTEET!B$2:D$12,2,FALSE))","v":""},{"$f":"IF(ISNA(VLOOKUP(D106,TAVOITTEET!B$2:E$12,3,FALSE)) = TRUE, \"\", VLOOKUP(D106,TAVOITTEET!B$2:E$12,3,FALSE))","v":""}]
[null,null,null,null,{"$f":"IF(ISNA(VLOOKUP(D107,TAVOITTEET!B$2:D$12,2,FALSE)) = TRUE, \"\", VLOOKUP(D107,TAVOITTEET!B$2:D$12,2,FALSE))","v":""},{"$f":"IF(ISNA(VLOOKUP(D107,TAVOITTEET!B$2:E$12,3,FALSE)) = TRUE, \"\", VLOOKUP(D107,TAVOITTEET!B$2:E$12,3,FALSE))","v":""}]
[null,null,null,null,{"$f":"IF(ISNA(VLOOKUP(D108,TAVOITTEET!B$2:D$12,2,FALSE)) = TRUE, \"\", VLOOKUP(D108,TAVOITTEET!B$2:D$12,2,FALSE))","v":""},{"$f":"IF(ISNA(VLOOKUP(D108,TAVOITTEET!B$2:E$12,3,FALSE)) = TRUE, \"\", VLOOKUP(D108,TAVOITTEET!B$2:E$12,3,FALSE))","v":""}]
[null,null,null,null,{"$f":"IF(ISNA(VLOOKUP(D109,TAVOITTEET!B$2:D$12,2,FALSE)) = TRUE, \"\", VLOOKUP(D109,TAVOITTEET!B$2:D$12,2,FALSE))","v":""},{"$f":"IF(ISNA(VLOOKUP(D109,TAVOITTEET!B$2:E$12,3,FALSE)) = TRUE, \"\", VLOOKUP(D109,TAVOITTEET!B$2:E$12,3,FALSE))","v":""}]
[null,null,null,null,{"$f":"IF(ISNA(VLOOKUP(D110,TAVOITTEET!B$2:D$12,2,FALSE)) = TRUE, \"\", VLOOKUP(D110,TAVOITTEET!B$2:D$12,2,FALSE))","v":""},{"$f":"IF(ISNA(VLOOKUP(D110,TAVOITTEET!B$2:E$12,3,FALSE)) = TRUE, \"\", VLOOKUP(D110,TAVOITTEET!B$2:E$12,3,FALSE))","v":""}]
[null,null,null,null,{"$f":"IF(ISNA(VLOOKUP(D111,TAVOITTEET!B$2:D$12,2,FALSE)) = TRUE, \"\", VLOOKUP(D111,TAVOITTEET!B$2:D$12,2,FALSE))","v":""},{"$f":"IF(ISNA(VLOOKUP(D111,TAVOITTEET!B$2:E$12,3,FALSE)) = TRUE, \"\", VLOOKUP(D111,TAVOITTEET!B$2:E$12,3,FALSE))","v":""}]
[null,null,null,null,{"$f":"IF(ISNA(VLOOKUP(D112,TAVOITTEET!B$2:D$12,2,FALSE)) = TRUE, \"\", VLOOKUP(D112,TAVOITTEET!B$2:D$12,2,FALSE))","v":""},{"$f":"IF(ISNA(VLOOKUP(D112,TAVOITTEET!B$2:E$12,3,FALSE)) = TRUE, \"\", VLOOKUP(D112,TAVOITTEET!B$2:E$12,3,FALSE))","v":""}]
[null,null,null,null,{"$f":"IF(ISNA(VLOOKUP(D113,TAVOITTEET!B$2:D$12,2,FALSE)) = TRUE, \"\", VLOOKUP(D113,TAVOITTEET!B$2:D$12,2,FALSE))","v":""},{"$f":"IF(ISNA(VLOOKUP(D113,TAVOITTEET!B$2:E$12,3,FALSE)) = TRUE, \"\", VLOOKUP(D113,TAVOITTEET!B$2:E$12,3,FALSE))","v":""}]
[null,null,null,null,{"$f":"IF(ISNA(VLOOKUP(D114,TAVOITTEET!B$2:D$12,2,FALSE)) = TRUE, \"\", VLOOKUP(D114,TAVOITTEET!B$2:D$12,2,FALSE))","v":""},{"$f":"IF(ISNA(VLOOKUP(D114,TAVOITTEET!B$2:E$12,3,FALSE)) = TRUE, \"\", VLOOKUP(D114,TAVOITTEET!B$2:E$12,3,FALSE))","v":""}]
[null,null,null,null,{"$f":"IF(ISNA(VLOOKUP(D115,TAVOITTEET!B$2:D$12,2,FALSE)) = TRUE, \"\", VLOOKUP(D115,TAVOITTEET!B$2:D$12,2,FALSE))","v":""},{"$f":"IF(ISNA(VLOOKUP(D115,TAVOITTEET!B$2:E$12,3,FALSE)) = TRUE, \"\", VLOOKUP(D115,TAVOITTEET!B$2:E$12,3,FALSE))","v":""}]
[null,null,null,null,{"$f":"IF(ISNA(VLOOKUP(D116,TAVOITTEET!B$2:D$12,2,FALSE)) = TRUE, \"\", VLOOKUP(D116,TAVOITTEET!B$2:D$12,2,FALSE))","v":""},{"$f":"IF(ISNA(VLOOKUP(D116,TAVOITTEET!B$2:E$12,3,FALSE)) = TRUE, \"\", VLOOKUP(D116,TAVOITTEET!B$2:E$12,3,FALSE))","v":""}]
[null,null,null,null,{"$f":"IF(ISNA(VLOOKUP(D117,TAVOITTEET!B$2:D$12,2,FALSE)) = TRUE, \"\", VLOOKUP(D117,TAVOITTEET!B$2:D$12,2,FALSE))","v":""},{"$f":"IF(ISNA(VLOOKUP(D117,TAVOITTEET!B$2:E$12,3,FALSE)) = TRUE, \"\", VLOOKUP(D117,TAVOITTEET!B$2:E$12,3,FALSE))","v":""}]
[null,null,null,null,{"$f":"IF(ISNA(VLOOKUP(D118,TAVOITTEET!B$2:D$12,2,FALSE)) = TRUE, \"\", VLOOKUP(D118,TAVOITTEET!B$2:D$12,2,FALSE))","v":""},{"$f":"IF(ISNA(VLOOKUP(D118,TAVOITTEET!B$2:E$12,3,FALSE)) = TRUE, \"\", VLOOKUP(D118,TAVOITTEET!B$2:E$12,3,FALSE))","v":""}]
[null,null,null,null,{"$f":"IF(ISNA(VLOOKUP(D119,TAVOITTEET!B$2:D$12,2,FALSE)) = TRUE, \"\", VLOOKUP(D119,TAVOITTEET!B$2:D$12,2,FALSE))","v":""},{"$f":"IF(ISNA(VLOOKUP(D119,TAVOITTEET!B$2:E$12,3,FALSE)) = TRUE, \"\", VLOOKUP(D119,TAVOITTEET!B$2:E$12,3,FALSE))","v":""}]
[null,null,null,null,{"$f":"IF(ISNA(VLOOKUP(D120,TAVOITTEET!B$2:D$12,2,FALSE)) = TRUE, \"\", VLOOKUP(D120,TAVOITTEET!B$2:D$12,2,FALSE))","v":""},{"$f":"IF(ISNA(VLOOKUP(D120,TAVOITTEET!B$2:E$12,3,FALSE)) = TRUE, \"\", VLOOKUP(D120,TAVOITTEET!B$2:E$12,3,FALSE))","v":""}]
[null,null,null,null,{"$f":"IF(ISNA(VLOOKUP(D121,TAVOITTEET!B$2:D$12,2,FALSE)) = TRUE, \"\", VLOOKUP(D121,TAVOITTEET!B$2:D$12,2,FALSE))","v":""},{"$f":"IF(ISNA(VLOOKUP(D121,TAVOITTEET!B$2:E$12,3,FALSE)) = TRUE, \"\", VLOOKUP(D121,TAVOITTEET!B$2:E$12,3,FALSE))","v":""}]
[null,null,null,null,{"$f":"IF(ISNA(VLOOKUP(D122,TAVOITTEET!B$2:D$12,2,FALSE)) = TRUE, \"\", VLOOKUP(D122,TAVOITTEET!B$2:D$12,2,FALSE))","v":""},{"$f":"IF(ISNA(VLOOKUP(D122,TAVOITTEET!B$2:E$12,3,FALSE)) = TRUE, \"\", VLOOKUP(D122,TAVOITTEET!B$2:E$12,3,FALSE))","v":""}]
[null,null,null,null,{"$f":"IF(ISNA(VLOOKUP(D123,TAVOITTEET!B$2:D$12,2,FALSE)) = TRUE, \"\", VLOOKUP(D123,TAVOITTEET!B$2:D$12,2,FALSE))","v":""},{"$f":"IF(ISNA(VLOOKUP(D123,TAVOITTEET!B$2:E$12,3,FALSE)) = TRUE, \"\", VLOOKUP(D123,TAVOITTEET!B$2:E$12,3,FALSE))","v":""}]
[null,null,null,null,{"$f":"IF(ISNA(VLOOKUP(D124,TAVOITTEET!B$2:D$12,2,FALSE)) = TRUE, \"\", VLOOKUP(D124,TAVOITTEET!B$2:D$12,2,FALSE))","v":""},{"$f":"IF(ISNA(VLOOKUP(D124,TAVOITTEET!B$2:E$12,3,FALSE)) = TRUE, \"\", VLOOKUP(D124,TAVOITTEET!B$2:E$12,3,FALSE))","v":""}]
[null,null,null,null,{"$f":"IF(ISNA(VLOOKUP(D125,TAVOITTEET!B$2:D$12,2,FALSE)) = TRUE, \"\", VLOOKUP(D125,TAVOITTEET!B$2:D$12,2,FALSE))","v":""},{"$f":"IF(ISNA(VLOOKUP(D125,TAVOITTEET!B$2:E$12,3,FALSE)) = TRUE, \"\", VLOOKUP(D125,TAVOITTEET!B$2:E$12,3,FALSE))","v":""}]
[null,null,null,null,{"$f":"IF(ISNA(VLOOKUP(D126,TAVOITTEET!B$2:D$12,2,FALSE)) = TRUE, \"\", VLOOKUP(D126,TAVOITTEET!B$2:D$12,2,FALSE))","v":""},{"$f":"IF(ISNA(VLOOKUP(D126,TAVOITTEET!B$2:E$12,3,FALSE)) = TRUE, \"\", VLOOKUP(D126,TAVOITTEET!B$2:E$12,3,FALSE))","v":""}]
[null,null,null,null,{"$f":"IF(ISNA(VLOOKUP(D127,TAVOITTEET!B$2:D$12,2,FALSE)) = TRUE, \"\", VLOOKUP(D127,TAVOITTEET!B$2:D$12,2,FALSE))","v":""},{"$f":"IF(ISNA(VLOOKUP(D127,TAVOITTEET!B$2:E$12,3,FALSE)) = TRUE, \"\", VLOOKUP(D127,TAVOITTEET!B$2:E$12,3,FALSE))","v":""}]
[null,null,null,null,{"$f":"IF(ISNA(VLOOKUP(D128,TAVOITTEET!B$2:D$12,2,FALSE)) = TRUE, \"\", VLOOKUP(D128,TAVOITTEET!B$2:D$12,2,FALSE))","v":""},{"$f":"IF(ISNA(VLOOKUP(D128,TAVOITTEET!B$2:E$12,3,FALSE)) = TRUE, \"\", VLOOKUP(D128,TAVOITTEET!B$2:E$12,3,FALSE))","v":""}]
[null,null,null,null,{"$f":"IF(ISNA(VLOOKUP(D129,TAVOITTEET!B$2:D$12,2,FALSE)) = TRUE, \"\", VLOOKUP(D129,TAVOITTEET!B$2:D$12,2,FALSE))","v":""},{"$f":"IF(ISNA(VLOOKUP(D129,TAVOITTEET!B$2:E$12,3,FALSE)) = TRUE, \"\", VLOOKUP(D129,TAVOITTEET!B$2:E$12,3,FALSE))","v":""}]
[null,null,null,null,{"$f":"IF(ISNA(VLOOKUP(D130,TAVOITTEET!B$2:D$12,2,FALSE)) = TRUE, \"\", VLOOKUP(D130,TAVOITTEET!B$2:D$12,2,FALSE))","v":""},{"$f":"IF(ISNA(VLOOKUP(D130,TAVOITTEET!B$2:E$12,3,FALSE)) = TRUE, \"\", VLOOKUP(D130,TAVOITTEET!B$2:E$12,3,FALSE))","v":""}]
[null,null,null,null,{"$f":"IF(ISNA(VLOOKUP(D131,TAVOITTEET!B$2:D$12,2,FALSE)) = TRUE, \"\", VLOOKUP(D131,TAVOITTEET!B$2:D$12,2,FALSE))","v":""},{"$f":"IF(ISNA(VLOOKUP(D131,TAVOITTEET!B$2:E$12,3,FALSE)) = TRUE, \"\", VLOOKUP(D131,TAVOITTEET!B$2:E$12,3,FALSE))","v":""}]
[null,null,null,null,{"$f":"IF(ISNA(VLOOKUP(D132,TAVOITTEET!B$2:D$12,2,FALSE)) = TRUE, \"\", VLOOKUP(D132,TAVOITTEET!B$2:D$12,2,FALSE))","v":""},{"$f":"IF(ISNA(VLOOKUP(D132,TAVOITTEET!B$2:E$12,3,FALSE)) = TRUE, \"\", VLOOKUP(D132,TAVOITTEET!B$2:E$12,3,FALSE))","v":""}]
[null,null,null,null,{"$f":"IF(ISNA(VLOOKUP(D133,TAVOITTEET!B$2:D$12,2,FALSE)) = TRUE, \"\", VLOOKUP(D133,TAVOITTEET!B$2:D$12,2,FALSE))","v":""},{"$f":"IF(ISNA(VLOOKUP(D133,TAVOITTEET!B$2:E$12,3,FALSE)) = TRUE, \"\", VLOOKUP(D133,TAVOITTEET!B$2:E$12,3,FALSE))","v":""}]
[null,null,null,null,{"$f":"IF(ISNA(VLOOKUP(D134,TAVOITTEET!B$2:D$12,2,FALSE)) = TRUE, \"\", VLOOKUP(D134,TAVOITTEET!B$2:D$12,2,FALSE))","v":""},{"$f":"IF(ISNA(VLOOKUP(D134,TAVOITTEET!B$2:E$12,3,FALSE)) = TRUE, \"\", VLOOKUP(D134,TAVOITTEET!B$2:E$12,3,FALSE))","v":""}]
[null,null,null,null,{"$f":"IF(ISNA(VLOOKUP(D135,TAVOITTEET!B$2:D$12,2,FALSE)) = TRUE, \"\", VLOOKUP(D135,TAVOITTEET!B$2:D$12,2,FALSE))","v":""},{"$f":"IF(ISNA(VLOOKUP(D135,TAVOITTEET!B$2:E$12,3,FALSE)) = TRUE, \"\", VLOOKUP(D135,TAVOITTEET!B$2:E$12,3,FALSE))","v":""}]
[null,null,null,null,{"$f":"IF(ISNA(VLOOKUP(D136,TAVOITTEET!B$2:D$12,2,FALSE)) = TRUE, \"\", VLOOKUP(D136,TAVOITTEET!B$2:D$12,2,FALSE))","v":""},{"$f":"IF(ISNA(VLOOKUP(D136,TAVOITTEET!B$2:E$12,3,FALSE)) = TRUE, \"\", VLOOKUP(D136,TAVOITTEET!B$2:E$12,3,FALSE))","v":""}]
[null,null,null,null,{"$f":"IF(ISNA(VLOOKUP(D137,TAVOITTEET!B$2:D$12,2,FALSE)) = TRUE, \"\", VLOOKUP(D137,TAVOITTEET!B$2:D$12,2,FALSE))","v":""},{"$f":"IF(ISNA(VLOOKUP(D137,TAVOITTEET!B$2:E$12,3,FALSE)) = TRUE, \"\", VLOOKUP(D137,TAVOITTEET!B$2:E$12,3,FALSE))","v":""}]
[null,null,null,null,{"$f":"IF(ISNA(VLOOKUP(D138,TAVOITTEET!B$2:D$12,2,FALSE)) = TRUE, \"\", VLOOKUP(D138,TAVOITTEET!B$2:D$12,2,FALSE))","v":""},{"$f":"IF(ISNA(VLOOKUP(D138,TAVOITTEET!B$2:E$12,3,FALSE)) = TRUE, \"\", VLOOKUP(D138,TAVOITTEET!B$2:E$12,3,FALSE))","v":""}]
[null,null,null,null,{"$f":"IF(ISNA(VLOOKUP(D139,TAVOITTEET!B$2:D$12,2,FALSE)) = TRUE, \"\", VLOOKUP(D139,TAVOITTEET!B$2:D$12,2,FALSE))","v":""},{"$f":"IF(ISNA(VLOOKUP(D139,TAVOITTEET!B$2:E$12,3,FALSE)) = TRUE, \"\", VLOOKUP(D139,TAVOITTEET!B$2:E$12,3,FALSE))","v":""}]
[null,null,null,null,{"$f":"IF(ISNA(VLOOKUP(D140,TAVOITTEET!B$2:D$12,2,FALSE)) = TRUE, \"\", VLOOKUP(D140,TAVOITTEET!B$2:D$12,2,FALSE))","v":""},{"$f":"IF(ISNA(VLOOKUP(D140,TAVOITTEET!B$2:E$12,3,FALSE)) = TRUE, \"\", VLOOKUP(D140,TAVOITTEET!B$2:E$12,3,FALSE))","v":""}]
[null,null,null,null,{"$f":"IF(ISNA(VLOOKUP(D141,TAVOITTEET!B$2:D$12,2,FALSE)) = TRUE, \"\", VLOOKUP(D141,TAVOITTEET!B$2:D$12,2,FALSE))","v":""},{"$f":"IF(ISNA(VLOOKUP(D141,TAVOITTEET!B$2:E$12,3,FALSE)) = TRUE, \"\", VLOOKUP(D141,TAVOITTEET!B$2:E$12,3,FALSE))","v":""}]
[null,null,null,null,{"$f":"IF(ISNA(VLOOKUP(D142,TAVOITTEET!B$2:D$12,2,FALSE)) = TRUE, \"\", VLOOKUP(D142,TAVOITTEET!B$2:D$12,2,FALSE))","v":""},{"$f":"IF(ISNA(VLOOKUP(D142,TAVOITTEET!B$2:E$12,3,FALSE)) = TRUE, \"\", VLOOKUP(D142,TAVOITTEET!B$2:E$12,3,FALSE))","v":""}]
[null,null,null,null,{"$f":"IF(ISNA(VLOOKUP(D143,TAVOITTEET!B$2:D$12,2,FALSE)) = TRUE, \"\", VLOOKUP(D143,TAVOITTEET!B$2:D$12,2,FALSE))","v":""},{"$f":"IF(ISNA(VLOOKUP(D143,TAVOITTEET!B$2:E$12,3,FALSE)) = TRUE, \"\", VLOOKUP(D143,TAVOITTEET!B$2:E$12,3,FALSE))","v":""}]
[null,null,null,null,{"$f":"IF(ISNA(VLOOKUP(D144,TAVOITTEET!B$2:D$12,2,FALSE)) = TRUE, \"\", VLOOKUP(D144,TAVOITTEET!B$2:D$12,2,FALSE))","v":""},{"$f":"IF(ISNA(VLOOKUP(D144,TAVOITTEET!B$2:E$12,3,FALSE)) = TRUE, \"\", VLOOKUP(D144,TAVOITTEET!B$2:E$12,3,FALSE))","v":""}]
[null,null,null,null,{"$f":"IF(ISNA(VLOOKUP(D145,TAVOITTEET!B$2:D$12,2,FALSE)) = TRUE, \"\", VLOOKUP(D145,TAVOITTEET!B$2:D$12,2,FALSE))","v":""},{"$f":"IF(ISNA(VLOOKUP(D145,TAVOITTEET!B$2:E$12,3,FALSE)) = TRUE, \"\", VLOOKUP(D145,TAVOITTEET!B$2:E$12,3,FALSE))","v":""}]
[null,null,null,null,{"$f":"IF(ISNA(VLOOKUP(D146,TAVOITTEET!B$2:D$12,2,FALSE)) = TRUE, \"\", VLOOKUP(D146,TAVOITTEET!B$2:D$12,2,FALSE))","v":""},{"$f":"IF(ISNA(VLOOKUP(D146,TAVOITTEET!B$2:E$12,3,FALSE)) = TRUE, \"\", VLOOKUP(D146,TAVOITTEET!B$2:E$12,3,FALSE))","v":""}]
[null,null,null,null,{"$f":"IF(ISNA(VLOOKUP(D147,TAVOITTEET!B$2:D$12,2,FALSE)) = TRUE, \"\", VLOOKUP(D147,TAVOITTEET!B$2:D$12,2,FALSE))","v":""},{"$f":"IF(ISNA(VLOOKUP(D147,TAVOITTEET!B$2:E$12,3,FALSE)) = TRUE, \"\", VLOOKUP(D147,TAVOITTEET!B$2:E$12,3,FALSE))","v":""}]
[null,null,null,null,{"$f":"IF(ISNA(VLOOKUP(D148,TAVOITTEET!B$2:D$12,2,FALSE)) = TRUE, \"\", VLOOKUP(D148,TAVOITTEET!B$2:D$12,2,FALSE))","v":""},{"$f":"IF(ISNA(VLOOKUP(D148,TAVOITTEET!B$2:E$12,3,FALSE)) = TRUE, \"\", VLOOKUP(D148,TAVOITTEET!B$2:E$12,3,FALSE))","v":""}]
[null,null,null,null,{"$f":"IF(ISNA(VLOOKUP(D149,TAVOITTEET!B$2:D$12,2,FALSE)) = TRUE, \"\", VLOOKUP(D149,TAVOITTEET!B$2:D$12,2,FALSE))","v":""},{"$f":"IF(ISNA(VLOOKUP(D149,TAVOITTEET!B$2:E$12,3,FALSE)) = TRUE, \"\", VLOOKUP(D149,TAVOITTEET!B$2:E$12,3,FALSE))","v":""}]
[null,null,null,null,{"$f":"IF(ISNA(VLOOKUP(D150,TAVOITTEET!B$2:D$12,2,FALSE)) = TRUE, \"\", VLOOKUP(D150,TAVOITTEET!B$2:D$12,2,FALSE))","v":""},{"$f":"IF(ISNA(VLOOKUP(D150,TAVOITTEET!B$2:E$12,3,FALSE)) = TRUE, \"\", VLOOKUP(D150,TAVOITTEET!B$2:E$12,3,FALSE))","v":""}]
[null,null,null,null,{"$f":"IF(ISNA(VLOOKUP(D151,TAVOITTEET!B$2:D$12,2,FALSE)) = TRUE, \"\", VLOOKUP(D151,TAVOITTEET!B$2:D$12,2,FALSE))","v":""},{"$f":"IF(ISNA(VLOOKUP(D151,TAVOITTEET!B$2:E$12,3,FALSE)) = TRUE, \"\", VLOOKUP(D151,TAVOITTEET!B$2:E$12,3,FALSE))","v":""}]
[null,null,null,null,{"$f":"IF(ISNA(VLOOKUP(D152,TAVOITTEET!B$2:D$12,2,FALSE)) = TRUE, \"\", VLOOKUP(D152,TAVOITTEET!B$2:D$12,2,FALSE))","v":""},{"$f":"IF(ISNA(VLOOKUP(D152,TAVOITTEET!B$2:E$12,3,FALSE)) = TRUE, \"\", VLOOKUP(D152,TAVOITTEET!B$2:E$12,3,FALSE))","v":""}]
[null,null,null,null,{"$f":"IF(ISNA(VLOOKUP(D153,TAVOITTEET!B$2:D$12,2,FALSE)) = TRUE, \"\", VLOOKUP(D153,TAVOITTEET!B$2:D$12,2,FALSE))","v":""},{"$f":"IF(ISNA(VLOOKUP(D153,TAVOITTEET!B$2:E$12,3,FALSE)) = TRUE, \"\", VLOOKUP(D153,TAVOITTEET!B$2:E$12,3,FALSE))","v":""}]
[null,null,null,null,{"$f":"IF(ISNA(VLOOKUP(D154,TAVOITTEET!B$2:D$12,2,FALSE)) = TRUE, \"\", VLOOKUP(D154,TAVOITTEET!B$2:D$12,2,FALSE))","v":""},{"$f":"IF(ISNA(VLOOKUP(D154,TAVOITTEET!B$2:E$12,3,FALSE)) = TRUE, \"\", VLOOKUP(D154,TAVOITTEET!B$2:E$12,3,FALSE))","v":""}]
[null,null,null,null,{"$f":"IF(ISNA(VLOOKUP(D155,TAVOITTEET!B$2:D$12,2,FALSE)) = TRUE, \"\", VLOOKUP(D155,TAVOITTEET!B$2:D$12,2,FALSE))","v":""},{"$f":"IF(ISNA(VLOOKUP(D155,TAVOITTEET!B$2:E$12,3,FALSE)) = TRUE, \"\", VLOOKUP(D155,TAVOITTEET!B$2:E$12,3,FALSE))","v":""}]
[null,null,null,null,{"$f":"IF(ISNA(VLOOKUP(D156,TAVOITTEET!B$2:D$12,2,FALSE)) = TRUE, \"\", VLOOKUP(D156,TAVOITTEET!B$2:D$12,2,FALSE))","v":""},{"$f":"IF(ISNA(VLOOKUP(D156,TAVOITTEET!B$2:E$12,3,FALSE)) = TRUE, \"\", VLOOKUP(D156,TAVOITTEET!B$2:E$12,3,FALSE))","v":""}]
[null,null,null,null,{"$f":"IF(ISNA(VLOOKUP(D157,TAVOITTEET!B$2:D$12,2,FALSE)) = TRUE, \"\", VLOOKUP(D157,TAVOITTEET!B$2:D$12,2,FALSE))","v":""},{"$f":"IF(ISNA(VLOOKUP(D157,TAVOITTEET!B$2:E$12,3,FALSE)) = TRUE, \"\", VLOOKUP(D157,TAVOITTEET!B$2:E$12,3,FALSE))","v":""}]
[null,null,null,null,{"$f":"IF(ISNA(VLOOKUP(D158,TAVOITTEET!B$2:D$12,2,FALSE)) = TRUE, \"\", VLOOKUP(D158,TAVOITTEET!B$2:D$12,2,FALSE))","v":""},{"$f":"IF(ISNA(VLOOKUP(D158,TAVOITTEET!B$2:E$12,3,FALSE)) = TRUE, \"\", VLOOKUP(D158,TAVOITTEET!B$2:E$12,3,FALSE))","v":""}]
[null,null,null,null,{"$f":"IF(ISNA(VLOOKUP(D159,TAVOITTEET!B$2:D$12,2,FALSE)) = TRUE, \"\", VLOOKUP(D159,TAVOITTEET!B$2:D$12,2,FALSE))","v":""},{"$f":"IF(ISNA(VLOOKUP(D159,TAVOITTEET!B$2:E$12,3,FALSE)) = TRUE, \"\", VLOOKUP(D159,TAVOITTEET!B$2:E$12,3,FALSE))","v":""}]
[null,null,null,null,{"$f":"IF(ISNA(VLOOKUP(D160,TAVOITTEET!B$2:D$12,2,FALSE)) = TRUE, \"\", VLOOKUP(D160,TAVOITTEET!B$2:D$12,2,FALSE))","v":""},{"$f":"IF(ISNA(VLOOKUP(D160,TAVOITTEET!B$2:E$12,3,FALSE)) = TRUE, \"\", VLOOKUP(D160,TAVOITTEET!B$2:E$12,3,FALSE))","v":""}]
[null,null,null,null,{"$f":"IF(ISNA(VLOOKUP(D161,TAVOITTEET!B$2:D$12,2,FALSE)) = TRUE, \"\", VLOOKUP(D161,TAVOITTEET!B$2:D$12,2,FALSE))","v":""},{"$f":"IF(ISNA(VLOOKUP(D161,TAVOITTEET!B$2:E$12,3,FALSE)) = TRUE, \"\", VLOOKUP(D161,TAVOITTEET!B$2:E$12,3,FALSE))","v":""}]
[null,null,null,null,{"$f":"IF(ISNA(VLOOKUP(D162,TAVOITTEET!B$2:D$12,2,FALSE)) = TRUE, \"\", VLOOKUP(D162,TAVOITTEET!B$2:D$12,2,FALSE))","v":""},{"$f":"IF(ISNA(VLOOKUP(D162,TAVOITTEET!B$2:E$12,3,FALSE)) = TRUE, \"\", VLOOKUP(D162,TAVOITTEET!B$2:E$12,3,FALSE))","v":""}]
[null,null,null,null,{"$f":"IF(ISNA(VLOOKUP(D163,TAVOITTEET!B$2:D$12,2,FALSE)) = TRUE, \"\", VLOOKUP(D163,TAVOITTEET!B$2:D$12,2,FALSE))","v":""},{"$f":"IF(ISNA(VLOOKUP(D163,TAVOITTEET!B$2:E$12,3,FALSE)) = TRUE, \"\", VLOOKUP(D163,TAVOITTEET!B$2:E$12,3,FALSE))","v":""}]
[null,null,null,null,{"$f":"IF(ISNA(VLOOKUP(D164,TAVOITTEET!B$2:D$12,2,FALSE)) = TRUE, \"\", VLOOKUP(D164,TAVOITTEET!B$2:D$12,2,FALSE))","v":""},{"$f":"IF(ISNA(VLOOKUP(D164,TAVOITTEET!B$2:E$12,3,FALSE)) = TRUE, \"\", VLOOKUP(D164,TAVOITTEET!B$2:E$12,3,FALSE))","v":""}]
[null,null,null,null,{"$f":"IF(ISNA(VLOOKUP(D165,TAVOITTEET!B$2:D$12,2,FALSE)) = TRUE, \"\", VLOOKUP(D165,TAVOITTEET!B$2:D$12,2,FALSE))","v":""},{"$f":"IF(ISNA(VLOOKUP(D165,TAVOITTEET!B$2:E$12,3,FALSE)) = TRUE, \"\", VLOOKUP(D165,TAVOITTEET!B$2:E$12,3,FALSE))","v":""}]
[null,null,null,null,{"$f":"IF(ISNA(VLOOKUP(D166,TAVOITTEET!B$2:D$12,2,FALSE)) = TRUE, \"\", VLOOKUP(D166,TAVOITTEET!B$2:D$12,2,FALSE))","v":""},{"$f":"IF(ISNA(VLOOKUP(D166,TAVOITTEET!B$2:E$12,3,FALSE)) = TRUE, \"\", VLOOKUP(D166,TAVOITTEET!B$2:E$12,3,FALSE))","v":""}]
[null,null,null,null,{"$f":"IF(ISNA(VLOOKUP(D167,TAVOITTEET!B$2:D$12,2,FALSE)) = TRUE, \"\", VLOOKUP(D167,TAVOITTEET!B$2:D$12,2,FALSE))","v":""},{"$f":"IF(ISNA(VLOOKUP(D167,TAVOITTEET!B$2:E$12,3,FALSE)) = TRUE, \"\", VLOOKUP(D167,TAVOITTEET!B$2:E$12,3,FALSE))","v":""}]
[null,null,null,null,{"$f":"IF(ISNA(VLOOKUP(D168,TAVOITTEET!B$2:D$12,2,FALSE)) = TRUE, \"\", VLOOKUP(D168,TAVOITTEET!B$2:D$12,2,FALSE))","v":""},{"$f":"IF(ISNA(VLOOKUP(D168,TAVOITTEET!B$2:E$12,3,FALSE)) = TRUE, \"\", VLOOKUP(D168,TAVOITTEET!B$2:E$12,3,FALSE))","v":""}]
[null,null,null,null,{"$f":"IF(ISNA(VLOOKUP(D169,TAVOITTEET!B$2:D$12,2,FALSE)) = TRUE, \"\", VLOOKUP(D169,TAVOITTEET!B$2:D$12,2,FALSE))","v":""},{"$f":"IF(ISNA(VLOOKUP(D169,TAVOITTEET!B$2:E$12,3,FALSE)) = TRUE, \"\", VLOOKUP(D169,TAVOITTEET!B$2:E$12,3,FALSE))","v":""}]
[null,null,null,null,{"$f":"IF(ISNA(VLOOKUP(D170,TAVOITTEET!B$2:D$12,2,FALSE)) = TRUE, \"\", VLOOKUP(D170,TAVOITTEET!B$2:D$12,2,FALSE))","v":""},{"$f":"IF(ISNA(VLOOKUP(D170,TAVOITTEET!B$2:E$12,3,FALSE)) = TRUE, \"\", VLOOKUP(D170,TAVOITTEET!B$2:E$12,3,FALSE))","v":""}]
[null,null,null,null,{"$f":"IF(ISNA(VLOOKUP(D171,TAVOITTEET!B$2:D$12,2,FALSE)) = TRUE, \"\", VLOOKUP(D171,TAVOITTEET!B$2:D$12,2,FALSE))","v":""},{"$f":"IF(ISNA(VLOOKUP(D171,TAVOITTEET!B$2:E$12,3,FALSE)) = TRUE, \"\", VLOOKUP(D171,TAVOITTEET!B$2:E$12,3,FALSE))","v":""}]
[null,null,null,null,{"$f":"IF(ISNA(VLOOKUP(D172,TAVOITTEET!B$2:D$12,2,FALSE)) = TRUE, \"\", VLOOKUP(D172,TAVOITTEET!B$2:D$12,2,FALSE))","v":""},{"$f":"IF(ISNA(VLOOKUP(D172,TAVOITTEET!B$2:E$12,3,FALSE)) = TRUE, \"\", VLOOKUP(D172,TAVOITTEET!B$2:E$12,3,FALSE))","v":""}]
[null,null,null,null,{"$f":"IF(ISNA(VLOOKUP(D173,TAVOITTEET!B$2:D$12,2,FALSE)) = TRUE, \"\", VLOOKUP(D173,TAVOITTEET!B$2:D$12,2,FALSE))","v":""},{"$f":"IF(ISNA(VLOOKUP(D173,TAVOITTEET!B$2:E$12,3,FALSE)) = TRUE, \"\", VLOOKUP(D173,TAVOITTEET!B$2:E$12,3,FALSE))","v":""}]
[null,null,null,null,{"$f":"IF(ISNA(VLOOKUP(D174,TAVOITTEET!B$2:D$12,2,FALSE)) = TRUE, \"\", VLOOKUP(D174,TAVOITTEET!B$2:D$12,2,FALSE))","v":""},{"$f":"IF(ISNA(VLOOKUP(D174,TAVOITTEET!B$2:E$12,3,FALSE)) = TRUE, \"\", VLOOKUP(D174,TAVOITTEET!B$2:E$12,3,FALSE))","v":""}]
[null,null,null,null,{"$f":"IF(ISNA(VLOOKUP(D175,TAVOITTEET!B$2:D$12,2,FALSE)) = TRUE, \"\", VLOOKUP(D175,TAVOITTEET!B$2:D$12,2,FALSE))","v":""},{"$f":"IF(ISNA(VLOOKUP(D175,TAVOITTEET!B$2:E$12,3,FALSE)) = TRUE, \"\", VLOOKUP(D175,TAVOITTEET!B$2:E$12,3,FALSE))","v":""}]
[null,null,null,null,{"$f":"IF(ISNA(VLOOKUP(D176,TAVOITTEET!B$2:D$12,2,FALSE)) = TRUE, \"\", VLOOKUP(D176,TAVOITTEET!B$2:D$12,2,FALSE))","v":""},{"$f":"IF(ISNA(VLOOKUP(D176,TAVOITTEET!B$2:E$12,3,FALSE)) = TRUE, \"\", VLOOKUP(D176,TAVOITTEET!B$2:E$12,3,FALSE))","v":""}]
[null,null,null,null,{"$f":"IF(ISNA(VLOOKUP(D177,TAVOITTEET!B$2:D$12,2,FALSE)) = TRUE, \"\", VLOOKUP(D177,TAVOITTEET!B$2:D$12,2,FALSE))","v":""},{"$f":"IF(ISNA(VLOOKUP(D177,TAVOITTEET!B$2:E$12,3,FALSE)) = TRUE, \"\", VLOOKUP(D177,TAVOITTEET!B$2:E$12,3,FALSE))","v":""}]
[null,null,null,null,{"$f":"IF(ISNA(VLOOKUP(D178,TAVOITTEET!B$2:D$12,2,FALSE)) = TRUE, \"\", VLOOKUP(D178,TAVOITTEET!B$2:D$12,2,FALSE))","v":""},{"$f":"IF(ISNA(VLOOKUP(D178,TAVOITTEET!B$2:E$12,3,FALSE)) = TRUE, \"\", VLOOKUP(D178,TAVOITTEET!B$2:E$12,3,FALSE))","v":""}]
[null,null,null,null,{"$f":"IF(ISNA(VLOOKUP(D179,TAVOITTEET!B$2:D$12,2,FALSE)) = TRUE, \"\", VLOOKUP(D179,TAVOITTEET!B$2:D$12,2,FALSE))","v":""},{"$f":"IF(ISNA(VLOOKUP(D179,TAVOITTEET!B$2:E$12,3,FALSE)) = TRUE, \"\", VLOOKUP(D179,TAVOITTEET!B$2:E$12,3,FALSE))","v":""}]
[null,null,null,null,{"$f":"IF(ISNA(VLOOKUP(D180,TAVOITTEET!B$2:D$12,2,FALSE)) = TRUE, \"\", VLOOKUP(D180,TAVOITTEET!B$2:D$12,2,FALSE))","v":""},{"$f":"IF(ISNA(VLOOKUP(D180,TAVOITTEET!B$2:E$12,3,FALSE)) = TRUE, \"\", VLOOKUP(D180,TAVOITTEET!B$2:E$12,3,FALSE))","v":""}]
[null,null,null,null,{"$f":"IF(ISNA(VLOOKUP(D181,TAVOITTEET!B$2:D$12,2,FALSE)) = TRUE, \"\", VLOOKUP(D181,TAVOITTEET!B$2:D$12,2,FALSE))","v":""},{"$f":"IF(ISNA(VLOOKUP(D181,TAVOITTEET!B$2:E$12,3,FALSE)) = TRUE, \"\", VLOOKUP(D181,TAVOITTEET!B$2:E$12,3,FALSE))","v":""}]
[null,null,null,null,{"$f":"IF(ISNA(VLOOKUP(D182,TAVOITTEET!B$2:D$12,2,FALSE)) = TRUE, \"\", VLOOKUP(D182,TAVOITTEET!B$2:D$12,2,FALSE))","v":""},{"$f":"IF(ISNA(VLOOKUP(D182,TAVOITTEET!B$2:E$12,3,FALSE)) = TRUE, \"\", VLOOKUP(D182,TAVOITTEET!B$2:E$12,3,FALSE))","v":""}]
[null,null,null,null,{"$f":"IF(ISNA(VLOOKUP(D183,TAVOITTEET!B$2:D$12,2,FALSE)) = TRUE, \"\", VLOOKUP(D183,TAVOITTEET!B$2:D$12,2,FALSE))","v":""},{"$f":"IF(ISNA(VLOOKUP(D183,TAVOITTEET!B$2:E$12,3,FALSE)) = TRUE, \"\", VLOOKUP(D183,TAVOITTEET!B$2:E$12,3,FALSE))","v":""}]
[null,null,null,null,{"$f":"IF(ISNA(VLOOKUP(D184,TAVOITTEET!B$2:D$12,2,FALSE)) = TRUE, \"\", VLOOKUP(D184,TAVOITTEET!B$2:D$12,2,FALSE))","v":""},{"$f":"IF(ISNA(VLOOKUP(D184,TAVOITTEET!B$2:E$12,3,FALSE)) = TRUE, \"\", VLOOKUP(D184,TAVOITTEET!B$2:E$12,3,FALSE))","v":""}]
[null,null,null,null,{"$f":"IF(ISNA(VLOOKUP(D185,TAVOITTEET!B$2:D$12,2,FALSE)) = TRUE, \"\", VLOOKUP(D185,TAVOITTEET!B$2:D$12,2,FALSE))","v":""},{"$f":"IF(ISNA(VLOOKUP(D185,TAVOITTEET!B$2:E$12,3,FALSE)) = TRUE, \"\", VLOOKUP(D185,TAVOITTEET!B$2:E$12,3,FALSE))","v":""}]
[null,null,null,null,{"$f":"IF(ISNA(VLOOKUP(D186,TAVOITTEET!B$2:D$12,2,FALSE)) = TRUE, \"\", VLOOKUP(D186,TAVOITTEET!B$2:D$12,2,FALSE))","v":""},{"$f":"IF(ISNA(VLOOKUP(D186,TAVOITTEET!B$2:E$12,3,FALSE)) = TRUE, \"\", VLOOKUP(D186,TAVOITTEET!B$2:E$12,3,FALSE))","v":""}]
[null,null,null,null,{"$f":"IF(ISNA(VLOOKUP(D187,TAVOITTEET!B$2:D$12,2,FALSE)) = TRUE, \"\", VLOOKUP(D187,TAVOITTEET!B$2:D$12,2,FALSE))","v":""},{"$f":"IF(ISNA(VLOOKUP(D187,TAVOITTEET!B$2:E$12,3,FALSE)) = TRUE, \"\", VLOOKUP(D187,TAVOITTEET!B$2:E$12,3,FALSE))","v":""}]
[null,null,null,null,{"$f":"IF(ISNA(VLOOKUP(D188,TAVOITTEET!B$2:D$12,2,FALSE)) = TRUE, \"\", VLOOKUP(D188,TAVOITTEET!B$2:D$12,2,FALSE))","v":""},{"$f":"IF(ISNA(VLOOKUP(D188,TAVOITTEET!B$2:E$12,3,FALSE)) = TRUE, \"\", VLOOKUP(D188,TAVOITTEET!B$2:E$12,3,FALSE))","v":""}]
[null,null,null,null,{"$f":"IF(ISNA(VLOOKUP(D189,TAVOITTEET!B$2:D$12,2,FALSE)) = TRUE, \"\", VLOOKUP(D189,TAVOITTEET!B$2:D$12,2,FALSE))","v":""},{"$f":"IF(ISNA(VLOOKUP(D189,TAVOITTEET!B$2:E$12,3,FALSE)) = TRUE, \"\", VLOOKUP(D189,TAVOITTEET!B$2:E$12,3,FALSE))","v":""}]
[null,null,null,null,{"$f":"IF(ISNA(VLOOKUP(D190,TAVOITTEET!B$2:D$12,2,FALSE)) = TRUE, \"\", VLOOKUP(D190,TAVOITTEET!B$2:D$12,2,FALSE))","v":""},{"$f":"IF(ISNA(VLOOKUP(D190,TAVOITTEET!B$2:E$12,3,FALSE)) = TRUE, \"\", VLOOKUP(D190,TAVOITTEET!B$2:E$12,3,FALSE))","v":""}]
[null,null,null,null,{"$f":"IF(ISNA(VLOOKUP(D191,TAVOITTEET!B$2:D$12,2,FALSE)) = TRUE, \"\", VLOOKUP(D191,TAVOITTEET!B$2:D$12,2,FALSE))","v":""},{"$f":"IF(ISNA(VLOOKUP(D191,TAVOITTEET!B$2:E$12,3,FALSE)) = TRUE, \"\", VLOOKUP(D191,TAVOITTEET!B$2:E$12,3,FALSE))","v":""}]
[null,null,null,null,{"$f":"IF(ISNA(VLOOKUP(D192,TAVOITTEET!B$2:D$12,2,FALSE)) = TRUE, \"\", VLOOKUP(D192,TAVOITTEET!B$2:D$12,2,FALSE))","v":""},{"$f":"IF(ISNA(VLOOKUP(D192,TAVOITTEET!B$2:E$12,3,FALSE)) = TRUE, \"\", VLOOKUP(D192,TAVOITTEET!B$2:E$12,3,FALSE))","v":""}]
[null,null,null,null,{"$f":"IF(ISNA(VLOOKUP(D193,TAVOITTEET!B$2:D$12,2,FALSE)) = TRUE, \"\", VLOOKUP(D193,TAVOITTEET!B$2:D$12,2,FALSE))","v":""},{"$f":"IF(ISNA(VLOOKUP(D193,TAVOITTEET!B$2:E$12,3,FALSE)) = TRUE, \"\", VLOOKUP(D193,TAVOITTEET!B$2:E$12,3,FALSE))","v":""}]
[null,null,null,null,{"$f":"IF(ISNA(VLOOKUP(D194,TAVOITTEET!B$2:D$12,2,FALSE)) = TRUE, \"\", VLOOKUP(D194,TAVOITTEET!B$2:D$12,2,FALSE))","v":""},{"$f":"IF(ISNA(VLOOKUP(D194,TAVOITTEET!B$2:E$12,3,FALSE)) = TRUE, \"\", VLOOKUP(D194,TAVOITTEET!B$2:E$12,3,FALSE))","v":""}]
[null,null,null,null,{"$f":"IF(ISNA(VLOOKUP(D195,TAVOITTEET!B$2:D$12,2,FALSE)) = TRUE, \"\", VLOOKUP(D195,TAVOITTEET!B$2:D$12,2,FALSE))","v":""},{"$f":"IF(ISNA(VLOOKUP(D195,TAVOITTEET!B$2:E$12,3,FALSE)) = TRUE, \"\", VLOOKUP(D195,TAVOITTEET!B$2:E$12,3,FALSE))","v":""}]
[null,null,null,null,{"$f":"IF(ISNA(VLOOKUP(D196,TAVOITTEET!B$2:D$12,2,FALSE)) = TRUE, \"\", VLOOKUP(D196,TAVOITTEET!B$2:D$12,2,FALSE))","v":""},{"$f":"IF(ISNA(VLOOKUP(D196,TAVOITTEET!B$2:E$12,3,FALSE)) = TRUE, \"\", VLOOKUP(D196,TAVOITTEET!B$2:E$12,3,FALSE))","v":""}]
[null,null,null,null,{"$f":"IF(ISNA(VLOOKUP(D197,TAVOITTEET!B$2:D$12,2,FALSE)) = TRUE, \"\", VLOOKUP(D197,TAVOITTEET!B$2:D$12,2,FALSE))","v":""},{"$f":"IF(ISNA(VLOOKUP(D197,TAVOITTEET!B$2:E$12,3,FALSE)) = TRUE, \"\", VLOOKUP(D197,TAVOITTEET!B$2:E$12,3,FALSE))","v":""}]
[null,null,null,null,{"$f":"IF(ISNA(VLOOKUP(D198,TAVOITTEET!B$2:D$12,2,FALSE)) = TRUE, \"\", VLOOKUP(D198,TAVOITTEET!B$2:D$12,2,FALSE))","v":""},{"$f":"IF(ISNA(VLOOKUP(D198,TAVOITTEET!B$2:E$12,3,FALSE)) = TRUE, \"\", VLOOKUP(D198,TAVOITTEET!B$2:E$12,3,FALSE))","v":""}]
[null,null,null,null,{"$f":"IF(ISNA(VLOOKUP(D199,TAVOITTEET!B$2:D$12,2,FALSE)) = TRUE, \"\", VLOOKUP(D199,TAVOITTEET!B$2:D$12,2,FALSE))","v":""},{"$f":"IF(ISNA(VLOOKUP(D199,TAVOITTEET!B$2:E$12,3,FALSE)) = TRUE, \"\", VLOOKUP(D199,TAVOITTEET!B$2:E$12,3,FALSE))","v":""}]
[null,null,null,null,{"$f":"IF(ISNA(VLOOKUP(D200,TAVOITTEET!B$2:D$12,2,FALSE)) = TRUE, \"\", VLOOKUP(D200,TAVOITTEET!B$2:D$12,2,FALSE))","v":""},{"$f":"IF(ISNA(VLOOKUP(D200,TAVOITTEET!B$2:E$12,3,FALSE)) = TRUE, \"\", VLOOKUP(D200,TAVOITTEET!B$2:E$12,3,FALSE))","v":""}]
[null,null,null,null,{"$f":"IF(ISNA(VLOOKUP(D201,TAVOITTEET!B$2:D$12,2,FALSE)) = TRUE, \"\", VLOOKUP(D201,TAVOITTEET!B$2:D$12,2,FALSE))","v":""},{"$f":"IF(ISNA(VLOOKUP(D201,TAVOITTEET!B$2:E$12,3,FALSE)) = TRUE, \"\", VLOOKUP(D201,TAVOITTEET!B$2:E$12,3,FALSE))","v":""}]
[null,null,null,null,{"$f":"IF(ISNA(VLOOKUP(D202,TAVOITTEET!B$2:D$12,2,FALSE)) = TRUE, \"\", VLOOKUP(D202,TAVOITTEET!B$2:D$12,2,FALSE))","v":""},{"$f":"IF(ISNA(VLOOKUP(D202,TAVOITTEET!B$2:E$12,3,FALSE)) = TRUE, \"\", VLOOKUP(D202,TAVOITTEET!B$2:E$12,3,FALSE))","v":""}]
[null,null,null,null,{"$f":"IF(ISNA(VLOOKUP(D203,TAVOITTEET!B$2:D$12,2,FALSE)) = TRUE, \"\", VLOOKUP(D203,TAVOITTEET!B$2:D$12,2,FALSE))","v":""},{"$f":"IF(ISNA(VLOOKUP(D203,TAVOITTEET!B$2:E$12,3,FALSE)) = TRUE, \"\", VLOOKUP(D203,TAVOITTEET!B$2:E$12,3,FALSE))","v":""}]
[null,null,null,null,{"$f":"IF(ISNA(VLOOKUP(D204,TAVOITTEET!B$2:D$12,2,FALSE)) = TRUE, \"\", VLOOKUP(D204,TAVOITTEET!B$2:D$12,2,FALSE))","v":""},{"$f":"IF(ISNA(VLOOKUP(D204,TAVOITTEET!B$2:E$12,3,FALSE)) = TRUE, \"\", VLOOKUP(D204,TAVOITTEET!B$2:E$12,3,FALSE))","v":""}]
[null,null,null,null,{"$f":"IF(ISNA(VLOOKUP(D205,TAVOITTEET!B$2:D$12,2,FALSE)) = TRUE, \"\", VLOOKUP(D205,TAVOITTEET!B$2:D$12,2,FALSE))","v":""},{"$f":"IF(ISNA(VLOOKUP(D205,TAVOITTEET!B$2:E$12,3,FALSE)) = TRUE, \"\", VLOOKUP(D205,TAVOITTEET!B$2:E$12,3,FALSE))","v":""}]
[null,null,null,null,{"$f":"IF(ISNA(VLOOKUP(D206,TAVOITTEET!B$2:D$12,2,FALSE)) = TRUE, \"\", VLOOKUP(D206,TAVOITTEET!B$2:D$12,2,FALSE))","v":""},{"$f":"IF(ISNA(VLOOKUP(D206,TAVOITTEET!B$2:E$12,3,FALSE)) = TRUE, \"\", VLOOKUP(D206,TAVOITTEET!B$2:E$12,3,FALSE))","v":""}]
[null,null,null,null,{"$f":"IF(ISNA(VLOOKUP(D207,TAVOITTEET!B$2:D$12,2,FALSE)) = TRUE, \"\", VLOOKUP(D207,TAVOITTEET!B$2:D$12,2,FALSE))","v":""},{"$f":"IF(ISNA(VLOOKUP(D207,TAVOITTEET!B$2:E$12,3,FALSE)) = TRUE, \"\", VLOOKUP(D207,TAVOITTEET!B$2:E$12,3,FALSE))","v":""}]
[null,null,null,null,{"$f":"IF(ISNA(VLOOKUP(D208,TAVOITTEET!B$2:D$12,2,FALSE)) = TRUE, \"\", VLOOKUP(D208,TAVOITTEET!B$2:D$12,2,FALSE))","v":""},{"$f":"IF(ISNA(VLOOKUP(D208,TAVOITTEET!B$2:E$12,3,FALSE)) = TRUE, \"\", VLOOKUP(D208,TAVOITTEET!B$2:E$12,3,FALSE))","v":""}]
[null,null,null,null,{"$f":"IF(ISNA(VLOOKUP(D209,TAVOITTEET!B$2:D$12,2,FALSE)) = TRUE, \"\", VLOOKUP(D209,TAVOITTEET!B$2:D$12,2,FALSE))","v":""},{"$f":"IF(ISNA(VLOOKUP(D209,TAVOITTEET!B$2:E$12,3,FALSE)) = TRUE, \"\", VLOOKUP(D209,TAVOITTEET!B$2:E$12,3,FALSE))","v":""}]
[null,null,null,null,{"$f":"IF(ISNA(VLOOKUP(D210,TAVOITTEET!B$2:D$12,2,FALSE)) = TRUE, \"\", VLOOKUP(D210,TAVOITTEET!B$2:D$12,2,FALSE))","v":""},{"$f":"IF(ISNA(VLOOKUP(D210,TAVOITTEET!B$2:E$12,3,FALSE)) = TRUE, \"\", VLOOKUP(D210,TAVOITTEET!B$2:E$12,3,FALSE))","v":""}]
[null,null,null,null,{"$f":"IF(ISNA(VLOOKUP(D211,TAVOITTEET!B$2:D$12,2,FALSE)) = TRUE, \"\", VLOOKUP(D211,TAVOITTEET!B$2:D$12,2,FALSE))","v":""},{"$f":"IF(ISNA(VLOOKUP(D211,TAVOITTEET!B$2:E$12,3,FALSE)) = TRUE, \"\", VLOOKUP(D211,TAVOITTEET!B$2:E$12,3,FALSE))","v":""}]
[null,null,null,null,{"$f":"IF(ISNA(VLOOKUP(D212,TAVOITTEET!B$2:D$12,2,FALSE)) = TRUE, \"\", VLOOKUP(D212,TAVOITTEET!B$2:D$12,2,FALSE))","v":""},{"$f":"IF(ISNA(VLOOKUP(D212,TAVOITTEET!B$2:E$12,3,FALSE)) = TRUE, \"\", VLOOKUP(D212,TAVOITTEET!B$2:E$12,3,FALSE))","v":""}]
[null,null,null,null,{"$f":"IF(ISNA(VLOOKUP(D213,TAVOITTEET!B$2:D$12,2,FALSE)) = TRUE, \"\", VLOOKUP(D213,TAVOITTEET!B$2:D$12,2,FALSE))","v":""},{"$f":"IF(ISNA(VLOOKUP(D213,TAVOITTEET!B$2:E$12,3,FALSE)) = TRUE, \"\", VLOOKUP(D213,TAVOITTEET!B$2:E$12,3,FALSE))","v":""}]
[null,null,null,null,{"$f":"IF(ISNA(VLOOKUP(D214,TAVOITTEET!B$2:D$12,2,FALSE)) = TRUE, \"\", VLOOKUP(D214,TAVOITTEET!B$2:D$12,2,FALSE))","v":""},{"$f":"IF(ISNA(VLOOKUP(D214,TAVOITTEET!B$2:E$12,3,FALSE)) = TRUE, \"\", VLOOKUP(D214,TAVOITTEET!B$2:E$12,3,FALSE))","v":""}]
[null,null,null,null,{"$f":"IF(ISNA(VLOOKUP(D215,TAVOITTEET!B$2:D$12,2,FALSE)) = TRUE, \"\", VLOOKUP(D215,TAVOITTEET!B$2:D$12,2,FALSE))","v":""},{"$f":"IF(ISNA(VLOOKUP(D215,TAVOITTEET!B$2:E$12,3,FALSE)) = TRUE, \"\", VLOOKUP(D215,TAVOITTEET!B$2:E$12,3,FALSE))","v":""}]
[null,null,null,null,{"$f":"IF(ISNA(VLOOKUP(D216,TAVOITTEET!B$2:D$12,2,FALSE)) = TRUE, \"\", VLOOKUP(D216,TAVOITTEET!B$2:D$12,2,FALSE))","v":""},{"$f":"IF(ISNA(VLOOKUP(D216,TAVOITTEET!B$2:E$12,3,FALSE)) = TRUE, \"\", VLOOKUP(D216,TAVOITTEET!B$2:E$12,3,FALSE))","v":""}]
[null,null,null,null,{"$f":"IF(ISNA(VLOOKUP(D217,TAVOITTEET!B$2:D$12,2,FALSE)) = TRUE, \"\", VLOOKUP(D217,TAVOITTEET!B$2:D$12,2,FALSE))","v":""},{"$f":"IF(ISNA(VLOOKUP(D217,TAVOITTEET!B$2:E$12,3,FALSE)) = TRUE, \"\", VLOOKUP(D217,TAVOITTEET!B$2:E$12,3,FALSE))","v":""}]
[null,null,null,null,{"$f":"IF(ISNA(VLOOKUP(D218,TAVOITTEET!B$2:D$12,2,FALSE)) = TRUE, \"\", VLOOKUP(D218,TAVOITTEET!B$2:D$12,2,FALSE))","v":""},{"$f":"IF(ISNA(VLOOKUP(D218,TAVOITTEET!B$2:E$12,3,FALSE)) = TRUE, \"\", VLOOKUP(D218,TAVOITTEET!B$2:E$12,3,FALSE))","v":""}]
[null,null,null,null,{"$f":"IF(ISNA(VLOOKUP(D219,TAVOITTEET!B$2:D$12,2,FALSE)) = TRUE, \"\", VLOOKUP(D219,TAVOITTEET!B$2:D$12,2,FALSE))","v":""},{"$f":"IF(ISNA(VLOOKUP(D219,TAVOITTEET!B$2:E$12,3,FALSE)) = TRUE, \"\", VLOOKUP(D219,TAVOITTEET!B$2:E$12,3,FALSE))","v":""}]
[null,null,null,null,{"$f":"IF(ISNA(VLOOKUP(D220,TAVOITTEET!B$2:D$12,2,FALSE)) = TRUE, \"\", VLOOKUP(D220,TAVOITTEET!B$2:D$12,2,FALSE))","v":""},{"$f":"IF(ISNA(VLOOKUP(D220,TAVOITTEET!B$2:E$12,3,FALSE)) = TRUE, \"\", VLOOKUP(D220,TAVOITTEET!B$2:E$12,3,FALSE))","v":""}]
[null,null,null,null,{"$f":"IF(ISNA(VLOOKUP(D221,TAVOITTEET!B$2:D$12,2,FALSE)) = TRUE, \"\", VLOOKUP(D221,TAVOITTEET!B$2:D$12,2,FALSE))","v":""},{"$f":"IF(ISNA(VLOOKUP(D221,TAVOITTEET!B$2:E$12,3,FALSE)) = TRUE, \"\", VLOOKUP(D221,TAVOITTEET!B$2:E$12,3,FALSE))","v":""}]
[null,null,null,null,{"$f":"IF(ISNA(VLOOKUP(D222,TAVOITTEET!B$2:D$12,2,FALSE)) = TRUE, \"\", VLOOKUP(D222,TAVOITTEET!B$2:D$12,2,FALSE))","v":""},{"$f":"IF(ISNA(VLOOKUP(D222,TAVOITTEET!B$2:E$12,3,FALSE)) = TRUE, \"\", VLOOKUP(D222,TAVOITTEET!B$2:E$12,3,FALSE))","v":""}]
[null,null,null,null,{"$f":"IF(ISNA(VLOOKUP(D223,TAVOITTEET!B$2:D$12,2,FALSE)) = TRUE, \"\", VLOOKUP(D223,TAVOITTEET!B$2:D$12,2,FALSE))","v":""},{"$f":"IF(ISNA(VLOOKUP(D223,TAVOITTEET!B$2:E$12,3,FALSE)) = TRUE, \"\", VLOOKUP(D223,TAVOITTEET!B$2:E$12,3,FALSE))","v":""}]
[null,null,null,null,{"$f":"IF(ISNA(VLOOKUP(D224,TAVOITTEET!B$2:D$12,2,FALSE)) = TRUE, \"\", VLOOKUP(D224,TAVOITTEET!B$2:D$12,2,FALSE))","v":""},{"$f":"IF(ISNA(VLOOKUP(D224,TAVOITTEET!B$2:E$12,3,FALSE)) = TRUE, \"\", VLOOKUP(D224,TAVOITTEET!B$2:E$12,3,FALSE))","v":""}]
[null,null,null,null,{"$f":"IF(ISNA(VLOOKUP(D225,TAVOITTEET!B$2:D$12,2,FALSE)) = TRUE, \"\", VLOOKUP(D225,TAVOITTEET!B$2:D$12,2,FALSE))","v":""},{"$f":"IF(ISNA(VLOOKUP(D225,TAVOITTEET!B$2:E$12,3,FALSE)) = TRUE, \"\", VLOOKUP(D225,TAVOITTEET!B$2:E$12,3,FALSE))","v":""}]
[null,null,null,null,{"$f":"IF(ISNA(VLOOKUP(D226,TAVOITTEET!B$2:D$12,2,FALSE)) = TRUE, \"\", VLOOKUP(D226,TAVOITTEET!B$2:D$12,2,FALSE))","v":""},{"$f":"IF(ISNA(VLOOKUP(D226,TAVOITTEET!B$2:E$12,3,FALSE)) = TRUE, \"\", VLOOKUP(D226,TAVOITTEET!B$2:E$12,3,FALSE))","v":""}]
[null,null,null,null,{"$f":"IF(ISNA(VLOOKUP(D227,TAVOITTEET!B$2:D$12,2,FALSE)) = TRUE, \"\", VLOOKUP(D227,TAVOITTEET!B$2:D$12,2,FALSE))","v":""},{"$f":"IF(ISNA(VLOOKUP(D227,TAVOITTEET!B$2:E$12,3,FALSE)) = TRUE, \"\", VLOOKUP(D227,TAVOITTEET!B$2:E$12,3,FALSE))","v":""}]
[null,null,null,null,{"$f":"IF(ISNA(VLOOKUP(D228,TAVOITTEET!B$2:D$12,2,FALSE)) = TRUE, \"\", VLOOKUP(D228,TAVOITTEET!B$2:D$12,2,FALSE))","v":""},{"$f":"IF(ISNA(VLOOKUP(D228,TAVOITTEET!B$2:E$12,3,FALSE)) = TRUE, \"\", VLOOKUP(D228,TAVOITTEET!B$2:E$12,3,FALSE))","v":""}]
[null,null,null,null,{"$f":"IF(ISNA(VLOOKUP(D229,TAVOITTEET!B$2:D$12,2,FALSE)) = TRUE, \"\", VLOOKUP(D229,TAVOITTEET!B$2:D$12,2,FALSE))","v":""},{"$f":"IF(ISNA(VLOOKUP(D229,TAVOITTEET!B$2:E$12,3,FALSE)) = TRUE, \"\", VLOOKUP(D229,TAVOITTEET!B$2:E$12,3,FALSE))","v":""}]
[null,null,null,null,{"$f":"IF(ISNA(VLOOKUP(D230,TAVOITTEET!B$2:D$12,2,FALSE)) = TRUE, \"\", VLOOKUP(D230,TAVOITTEET!B$2:D$12,2,FALSE))","v":""},{"$f":"IF(ISNA(VLOOKUP(D230,TAVOITTEET!B$2:E$12,3,FALSE)) = TRUE, \"\", VLOOKUP(D230,TAVOITTEET!B$2:E$12,3,FALSE))","v":""}]
[null,null,null,null,{"$f":"IF(ISNA(VLOOKUP(D231,TAVOITTEET!B$2:D$12,2,FALSE)) = TRUE, \"\", VLOOKUP(D231,TAVOITTEET!B$2:D$12,2,FALSE))","v":""},{"$f":"IF(ISNA(VLOOKUP(D231,TAVOITTEET!B$2:E$12,3,FALSE)) = TRUE, \"\", VLOOKUP(D231,TAVOITTEET!B$2:E$12,3,FALSE))","v":""}]
[null,null,null,null,{"$f":"IF(ISNA(VLOOKUP(D232,TAVOITTEET!B$2:D$12,2,FALSE)) = TRUE, \"\", VLOOKUP(D232,TAVOITTEET!B$2:D$12,2,FALSE))","v":""},{"$f":"IF(ISNA(VLOOKUP(D232,TAVOITTEET!B$2:E$12,3,FALSE)) = TRUE, \"\", VLOOKUP(D232,TAVOITTEET!B$2:E$12,3,FALSE))","v":""}]
[null,null,null,null,{"$f":"IF(ISNA(VLOOKUP(D233,TAVOITTEET!B$2:D$12,2,FALSE)) = TRUE, \"\", VLOOKUP(D233,TAVOITTEET!B$2:D$12,2,FALSE))","v":""},{"$f":"IF(ISNA(VLOOKUP(D233,TAVOITTEET!B$2:E$12,3,FALSE)) = TRUE, \"\", VLOOKUP(D233,TAVOITTEET!B$2:E$12,3,FALSE))","v":""}]
[null,null,null,null,{"$f":"IF(ISNA(VLOOKUP(D234,TAVOITTEET!B$2:D$12,2,FALSE)) = TRUE, \"\", VLOOKUP(D234,TAVOITTEET!B$2:D$12,2,FALSE))","v":""},{"$f":"IF(ISNA(VLOOKUP(D234,TAVOITTEET!B$2:E$12,3,FALSE)) = TRUE, \"\", VLOOKUP(D234,TAVOITTEET!B$2:E$12,3,FALSE))","v":""}]
[null,null,null,null,{"$f":"IF(ISNA(VLOOKUP(D235,TAVOITTEET!B$2:D$12,2,FALSE)) = TRUE, \"\", VLOOKUP(D235,TAVOITTEET!B$2:D$12,2,FALSE))","v":""},{"$f":"IF(ISNA(VLOOKUP(D235,TAVOITTEET!B$2:E$12,3,FALSE)) = TRUE, \"\", VLOOKUP(D235,TAVOITTEET!B$2:E$12,3,FALSE))","v":""}]
[null,null,null,null,{"$f":"IF(ISNA(VLOOKUP(D236,TAVOITTEET!B$2:D$12,2,FALSE)) = TRUE, \"\", VLOOKUP(D236,TAVOITTEET!B$2:D$12,2,FALSE))","v":""},{"$f":"IF(ISNA(VLOOKUP(D236,TAVOITTEET!B$2:E$12,3,FALSE)) = TRUE, \"\", VLOOKUP(D236,TAVOITTEET!B$2:E$12,3,FALSE))","v":""}]
[null,null,null,null,{"$f":"IF(ISNA(VLOOKUP(D237,TAVOITTEET!B$2:D$12,2,FALSE)) = TRUE, \"\", VLOOKUP(D237,TAVOITTEET!B$2:D$12,2,FALSE))","v":""},{"$f":"IF(ISNA(VLOOKUP(D237,TAVOITTEET!B$2:E$12,3,FALSE)) = TRUE, \"\", VLOOKUP(D237,TAVOITTEET!B$2:E$12,3,FALSE))","v":""}]
[null,null,null,null,{"$f":"IF(ISNA(VLOOKUP(D238,TAVOITTEET!B$2:D$12,2,FALSE)) = TRUE, \"\", VLOOKUP(D238,TAVOITTEET!B$2:D$12,2,FALSE))","v":""},{"$f":"IF(ISNA(VLOOKUP(D238,TAVOITTEET!B$2:E$12,3,FALSE)) = TRUE, \"\", VLOOKUP(D238,TAVOITTEET!B$2:E$12,3,FALSE))","v":""}]
[null,null,null,null,{"$f":"IF(ISNA(VLOOKUP(D239,TAVOITTEET!B$2:D$12,2,FALSE)) = TRUE, \"\", VLOOKUP(D239,TAVOITTEET!B$2:D$12,2,FALSE))","v":""},{"$f":"IF(ISNA(VLOOKUP(D239,TAVOITTEET!B$2:E$12,3,FALSE)) = TRUE, \"\", VLOOKUP(D239,TAVOITTEET!B$2:E$12,3,FALSE))","v":""}]
[null,null,null,null,{"$f":"IF(ISNA(VLOOKUP(D240,TAVOITTEET!B$2:D$12,2,FALSE)) = TRUE, \"\", VLOOKUP(D240,TAVOITTEET!B$2:D$12,2,FALSE))","v":""},{"$f":"IF(ISNA(VLOOKUP(D240,TAVOITTEET!B$2:E$12,3,FALSE)) = TRUE, \"\", VLOOKUP(D240,TAVOITTEET!B$2:E$12,3,FALSE))","v":""}]
[null,null,null,null,{"$f":"IF(ISNA(VLOOKUP(D241,TAVOITTEET!B$2:D$12,2,FALSE)) = TRUE, \"\", VLOOKUP(D241,TAVOITTEET!B$2:D$12,2,FALSE))","v":""},{"$f":"IF(ISNA(VLOOKUP(D241,TAVOITTEET!B$2:E$12,3,FALSE)) = TRUE, \"\", VLOOKUP(D241,TAVOITTEET!B$2:E$12,3,FALSE))","v":""}]
[null,null,null,null,{"$f":"IF(ISNA(VLOOKUP(D242,TAVOITTEET!B$2:D$12,2,FALSE)) = TRUE, \"\", VLOOKUP(D242,TAVOITTEET!B$2:D$12,2,FALSE))","v":""},{"$f":"IF(ISNA(VLOOKUP(D242,TAVOITTEET!B$2:E$12,3,FALSE)) = TRUE, \"\", VLOOKUP(D242,TAVOITTEET!B$2:E$12,3,FALSE))","v":""}]
[null,null,null,null,{"$f":"IF(ISNA(VLOOKUP(D243,TAVOITTEET!B$2:D$12,2,FALSE)) = TRUE, \"\", VLOOKUP(D243,TAVOITTEET!B$2:D$12,2,FALSE))","v":""},{"$f":"IF(ISNA(VLOOKUP(D243,TAVOITTEET!B$2:E$12,3,FALSE)) = TRUE, \"\", VLOOKUP(D243,TAVOITTEET!B$2:E$12,3,FALSE))","v":""}]
[null,null,null,null,{"$f":"IF(ISNA(VLOOKUP(D244,TAVOITTEET!B$2:D$12,2,FALSE)) = TRUE, \"\", VLOOKUP(D244,TAVOITTEET!B$2:D$12,2,FALSE))","v":""},{"$f":"IF(ISNA(VLOOKUP(D244,TAVOITTEET!B$2:E$12,3,FALSE)) = TRUE, \"\", VLOOKUP(D244,TAVOITTEET!B$2:E$12,3,FALSE))","v":""}]
[null,null,null,null,{"$f":"IF(ISNA(VLOOKUP(D245,TAVOITTEET!B$2:D$12,2,FALSE)) = TRUE, \"\", VLOOKUP(D245,TAVOITTEET!B$2:D$12,2,FALSE))","v":""},{"$f":"IF(ISNA(VLOOKUP(D245,TAVOITTEET!B$2:E$12,3,FALSE)) = TRUE, \"\", VLOOKUP(D245,TAVOITTEET!B$2:E$12,3,FALSE))","v":""}]
[null,null,null,null,{"$f":"IF(ISNA(VLOOKUP(D246,TAVOITTEET!B$2:D$12,2,FALSE)) = TRUE, \"\", VLOOKUP(D246,TAVOITTEET!B$2:D$12,2,FALSE))","v":""},{"$f":"IF(ISNA(VLOOKUP(D246,TAVOITTEET!B$2:E$12,3,FALSE)) = TRUE, \"\", VLOOKUP(D246,TAVOITTEET!B$2:E$12,3,FALSE))","v":""}]
[null,null,null,null,{"$f":"IF(ISNA(VLOOKUP(D247,TAVOITTEET!B$2:D$12,2,FALSE)) = TRUE, \"\", VLOOKUP(D247,TAVOITTEET!B$2:D$12,2,FALSE))","v":""},{"$f":"IF(ISNA(VLOOKUP(D247,TAVOITTEET!B$2:E$12,3,FALSE)) = TRUE, \"\", VLOOKUP(D247,TAVOITTEET!B$2:E$12,3,FALSE))","v":""}]
[null,null,null,null,{"$f":"IF(ISNA(VLOOKUP(D248,TAVOITTEET!B$2:D$12,2,FALSE)) = TRUE, \"\", VLOOKUP(D248,TAVOITTEET!B$2:D$12,2,FALSE))","v":""},{"$f":"IF(ISNA(VLOOKUP(D248,TAVOITTEET!B$2:E$12,3,FALSE)) = TRUE, \"\", VLOOKUP(D248,TAVOITTEET!B$2:E$12,3,FALSE))","v":""}]
[null,null,null,null,{"$f":"IF(ISNA(VLOOKUP(D249,TAVOITTEET!B$2:D$12,2,FALSE)) = TRUE, \"\", VLOOKUP(D249,TAVOITTEET!B$2:D$12,2,FALSE))","v":""},{"$f":"IF(ISNA(VLOOKUP(D249,TAVOITTEET!B$2:E$12,3,FALSE)) = TRUE, \"\", VLOOKUP(D249,TAVOITTEET!B$2:E$12,3,FALSE))","v":""}]
[null,null,null,null,{"$f":"IF(ISNA(VLOOKUP(D250,TAVOITTEET!B$2:D$12,2,FALSE)) = TRUE, \"\", VLOOKUP(D250,TAVOITTEET!B$2:D$12,2,FALSE))","v":""},{"$f":"IF(ISNA(VLOOKUP(D250,TAVOITTEET!B$2:E$12,3,FALSE)) = TRUE, \"\", VLOOKUP(D250,TAVOITTEET!B$2:E$12,3,FALSE))","v":""}]
[null,null,null,null,{"$f":"IF(ISNA(VLOOKUP(D251,TAVOITTEET!B$2:D$12,2,FALSE)) = TRUE, \"\", VLOOKUP(D251,TAVOITTEET!B$2:D$12,2,FALSE))","v":""},{"$f":"IF(ISNA(VLOOKUP(D251,TAVOITTEET!B$2:E$12,3,FALSE)) = TRUE, \"\", VLOOKUP(D251,TAVOITTEET!B$2:E$12,3,FALSE))","v":""}]
[null,null,null,null,{"$f":"IF(ISNA(VLOOKUP(D252,TAVOITTEET!B$2:D$12,2,FALSE)) = TRUE, \"\", VLOOKUP(D252,TAVOITTEET!B$2:D$12,2,FALSE))","v":""},{"$f":"IF(ISNA(VLOOKUP(D252,TAVOITTEET!B$2:E$12,3,FALSE)) = TRUE, \"\", VLOOKUP(D252,TAVOITTEET!B$2:E$12,3,FALSE))","v":""}]

{"sheet":"VUOSISUUNNITELMA","index":1,"n_rows":56,"n_cols":52,"rows_kept":56,"cut":false,"hidden":false,"merged":[[4,6,5,6],[4,1,5,1],[4,2,5,2],[4,3,5,3],[4,4,5,4],[4,5,5,5]]}
[null,"Vuosisuunnitelma"]
[null,null,null,null,null,null,null,"Viikon korostus:",32,null,null,"Suunniteltu kesto",null,null,null,null,null,"Todellinen aloitus",null,null,null,null,null,"Todellinen (yli suunnitellun)"]
[]
[null,null,null,null,null,null,null,"Lukuvuosi",null,null,null,{"$f":"IF(L5<8, \"syys\", \"\")","v":""},{"$f":"IF(M5<8, \"syys\", \"\")","v":"syys"},{"$f":"IF(N5<8, \"syys\", \"\")","v":""},{"$f":"IF(O5<8, \"syys\", \"\")","v":""},null,{"$f":"IF(Q5<8, \"loka\", \"\")","v":""},{"$f":"IF(R5<8, \"loka\", \"\")","v":"loka"},{"$f":"IF(S5<8, \"loka\", \"\")","v":""},null,{"$f":"IF(U5<8, \"marras\", \"\")","v":""},{"$f":"IF(V5<8, \"marras\", \"\")","v":"marras"},{"$f":"IF(W5<8, \"marras\", \"\")","v":""},null,{"$f":"IF(Y5<8, \"joulu\",\"\")","v":""},{"$f":"IF(Z5<8, \"joulu\",\"\")","v":"joulu"},{"$f":"IF(AA5<8, \"joulu\",\"\")","v":""},null,null,{"$f":"IF(AD5<8, \"tammi\", \"\")","v":""},{"$f":"IF(AE5<8, \"tammi\", \"\")","v":"tammi"},null,null,{"$f":"IF(AH5<8, \"helmi\", \"\")","v":""},{"$f":"IF(AI5<8, \"helmi\", \"\")","v":"helmi"},{"$f":"IF(AJ5<8, \"helmi\", \"\")","v":""},null,{"$f":"IF(AL5<8, \"maalis\", \"\")","v":""},{"$f":"IF(AM5<8, \"maalis\", \"\")","v":"maalis"},{"$f":"IF(AN5<8, \"maalis\", \"\")","v":""},null,null,{"$f":"IF(AQ5<8, \"huhti\", \"\")","v":""},{"$f":"IF(AR5<8, \"huhti\", \"\")","v":"huhti"},{"$f":"IF(AS5<8, \"huhti\", \"\")","v":""},null,{"$f":"IF(AU5<8, \"touko\", \"\")","v":""},{"$f":"IF(AV5<8, \"touko\", \"\")","v":"touko"},{"$f":"IF(AW5<8, \"touko\", \"\")","v":""},null,{"$f":"IF(AY5<8, \"kesä\", \"\")","v":""},{"$f":"IF(AZ5<8, \"kesä\", \"\")","v":"kesä"}]
[null,"OPINTOKOKONAISUUS","OPINTOKOKONAISUUDEN NIMI","ALOITUSVIIKKO","SUUNNITELTU KESTO","TODELLINEN ALOITUS","TODELLINEN KESTO","2019-2020",{"$f":"VLOOKUP($H$5,LUKUVUOSITIEDOT!$D:$AV,2,FALSE)","v":5},{"$f":"VLOOKUP($H$5,LUKUVUOSITIEDOT!$D:$AV,3,FALSE)","v":12},{"$f":"VLOOKUP($H$5,LUKUVUOSITIEDOT!$D:$AV,4,FALSE)","v":19},{"$f":"VLOOKUP($H$5,LUKUVUOSITIEDOT!$D:$AV,5,FALSE)","v":26},{"$f":"VLOOKUP($H$5,LUKUVUOSITIEDOT!$D:$AV,6,FALSE)","v":2},{"$f":"VLOOKUP($H$5,LUKUVUOSITIEDOT!$D:$AV,7,FALSE)","v":9},{"$f":"VLOOKUP($H$5,LUKUVUOSITIEDOT!$D:$AV,8,FALSE)","v":16},{"$f":"VLOOKUP($H$5,LUKUVUOSITIEDOT!$D:$AV,9,FALSE)","v":23},{"$f":"VLOOKUP($H$5,LUKUVUOSITIEDOT!$D:$AV,10,FALSE)","v":30},{"$f":"VLOOKUP($H$5,LUKUVUOSITIEDOT!$D:$AV,11,FALSE)","v":7},{"$f":"VLOOKUP($H$5,LUKUVUOSITIEDOT!$D:$AV,12,FALSE)","v":14},{"$f":"VLOOKUP($H$5,LUKUVUOSITIEDOT!$D:$AV,13,FALSE)","v":21},{"$f":"VLOOKUP($H$5,LUKUVUOSITIEDOT!$D:$AV,14,FALSE)","v":28},{"$f":"VLOOKUP($H$5,LUKUVUOSITIEDOT!$D:$AV,15,FALSE)","v":4},{"$f":"VLOOKUP($H$5,LUKUVUOSITIEDOT!$D:$AV,16,FALSE)","v":11},{"$f":"VLOOKUP($H$5,LUKUVUOSITIEDOT!$D:$AV,17,FALSE)","v":18},{"$f":"VLOOKUP($H$5,LUKUVUOSITIEDOT!$D:$AV,18,FALSE)","v":25},{"$f":"VLOOKUP($H$5,LUKUVUOSITIEDOT!$D:$AV,19,FALSE)","v":2},{"$f":"VLOOKUP($H$5,LUKUVUOSITIEDOT!$D:$AV,20,FALSE)","v":9},{"$f":"VLOOKUP($H$5,LUKUVUOSITIEDOT!$D:$AV,21,FALSE)","v":16},{"$f":"VLOOKUP($H$5,LUKUVUOSITIEDOT!$D:$AV,22,FALSE)","v":23},{"$f":"VLOOKUP($H$5,LUKUVUOSITIEDOT!$D:$AV,23,FALSE)","v":30},{"$f":"VLOOKUP($H$5,LUKUVUOSITIEDOT!$D:$AV,24,FALSE)","v":6},{"$f":"VLOOKUP($H$5,LUKUVUOSITIEDOT!$D:$AV,25,FALSE)","v":13},{"$f":"VLOOKUP($H$5,LUKUVUOSITIEDOT!$D:$AV,26,FALSE)","v":20},{"$f":"VLOOKUP($H$5,LUKUVUOSITIEDOT!$D:$AV,27,FALSE)","v":27},{"$f":"VLOOKUP($H$5,LUKUVUOSITIEDOT!$D:$AV,28,FALSE)","v":3},{"$f":"VLOOKUP($H$5,LUKUVUOSITIEDOT!$D:$AV,29,FALSE)","v":10},{"$f":"VLOOKUP($H$5,LUKUVUOSITIEDOT!$D:$AV,30,FALSE)","v":17},{"$f":"VLOOKUP($H$5,LUKUVUOSITIEDOT!$D:$AV,31,FALSE)","v":24},{"$f":"VLOOKUP($H$5,LUKUVUOSITIEDOT!$D:$AV,32,FALSE)","v":2},{"$f":"VLOOKUP($H$5,LUKUVUOSITIEDOT!$D:$AV,33,FALSE)","v":9},{"$f":"VLOOKUP($H$5,LUKUVUOSITIEDOT!$D:$AV,34,FALSE)","v":16},{"$f":"VLOOKUP($H$5,LUKUVUOSITIEDOT!$D:$AV,35,FALSE)","v":23},{"$f":"VLOOKUP($H$5,LUKUVUOSITIEDOT!$D:$AV,36,FALSE)","v":30},{"$f":"VLOOKUP($H$5,LUKUVUOSITIEDOT!$D:$AV,37,FALSE)","v":6},{"$f":"VLOOKUP($H$5,LUKUVUOSITIEDOT!$D:$AV,38,FALSE)","v":13},{"$f":"VLOOKUP($H$5,LUKUVUOSITIEDOT!$D:$AV,39,FALSE)","v":20},{"$f":"VLOOKUP($H$5,LUKUVUOSITIEDOT!$D:$AV,40,FALSE)","v":27},{"$f":"VLOOKUP($H$5,LUKUVUOSITIEDOT!$D:$AV,41,FALSE)","v":4},{"$f":"VLOOKUP($H$5,LUKUVUOSITIEDOT!$D:$AV,42,FALSE)","v":11},{"$f":"VLOOKUP($H$5,LUKUVUOSITIEDOT!$D:$AV,43,FALSE)","v":18},{"$f":"VLOOKUP($H$5,LUKUVUOSITIEDOT!$D:$AV,44,FALSE)","v":25},{"$f":"VLOOKUP($H$5,LUKUVUOSITIEDOT!$D:$AV,45,FALSE)","v":1}]
[null,null,null,null,null,null,null,null,32,33,34,35,36,37,38,39,40,41,42,43,44,45,46,47,48,49,50,51,52,1,2,3,4,5,6,7,8,9,10,11,12,13,14,15,16,17,18,19,20,21,22,23]
[null,1,{"$f":"IF(ISNA(VLOOKUP(B7,OPINTOKOKONAISUUDET!B$8:C$206,2,FALSE)) = TRUE, \"\", VLOOKUP(B7,OPINTOKOKONAISUUDET!B$8:C$206,2,FALSE))","v":""}]
[null,2,{"$f":"IF(ISNA(VLOOKUP(B8,OPINTOKOKONAISUUDET!B$8:C$206,2,FALSE)) = TRUE, \"\", VLOOKUP(B8,OPINTOKOKONAISUUDET!B$8:C$206,2,FALSE))","v":""}]
[null,3,{"$f":"IF(ISNA(VLOOKUP(B9,OPINTOKOKONAISUUDET!B$8:C$206,2,FALSE)) = TRUE, \"\", VLOOKUP(B9,OPINTOKOKONAISUUDET!B$8:C$206,2,FALSE))","v":""}]
[null,4,{"$f":"IF(ISNA(VLOOKUP(B10,OPINTOKOKONAISUUDET!B$8:C$206,2,FALSE)) = TRUE, \"\", VLOOKUP(B10,OPINTOKOKONAISUUDET!B$8:C$206,2,FALSE))","v":""}]
[null,5,{"$f":"IF(ISNA(VLOOKUP(B11,OPINTOKOKONAISUUDET!B$8:C$206,2,FALSE)) = TRUE, \"\", VLOOKUP(B11,OPINTOKOKONAISUUDET!B$8:C$206,2,FALSE))","v":""}]
[null,6,{"$f":"IF(ISNA(VLOOKUP(B12,OPINTOKOKONAISUUDET!B$8:C$206,2,FALSE)) = TRUE, \"\", VLOOKUP(B12,OPINTOKOKONAISUUDET!B$8:C$206,2,FALSE))","v":""}]
[null,7,{"$f":"IF(ISNA(VLOOKUP(B13,OPINTOKOKONAISUUDET!B$8:C$206,2,FALSE)) = TRUE, \"\", VLOOKUP(B13,OPINTOKOKONAISUUDET!B$8:C$206,2,FALSE))","v":""}]
[null,8,{"$f":"IF(ISNA(VLOOKUP(B14,OPINTOKOKONAISUUDET!B$8:C$206,2,FALSE)) = TRUE, \"\", VLOOKUP(B14,OPINTOKOKONAISUUDET!B$8:C$206,2,FALSE))","v":""}]
[null,9,{"$f":"IF(ISNA(VLOOKUP(B15,OPINTOKOKONAISUUDET!B$8:C$206,2,FALSE)) = TRUE, \"\", VLOOKUP(B15,OPINTOKOKONAISUUDET!B$8:C$206,2,FALSE))","v":""}]
[null,10,{"$f":"IF(ISNA(VLOOKUP(B16,OPINTOKOKONAISUUDET!B$8:C$206,2,FALSE)) = TRUE, \"\", VLOOKUP(B16,OPINTOKOKONAISUUDET!B$8:C$206,2,FALSE))","v":""}]
[null,11,{"$f":"IF(ISNA(VLOOKUP(B17,OPINTOKOKONAISUUDET!B$8:C$206,2,FALSE)) = TRUE, \"\", VLOOKUP(B17,OPINTOKOKONAISUUDET!B$8:C$206,2,FALSE))","v":""}]
[null,12,{"$f":"IF(ISNA(VLOOKUP(B18,OPINTOKOKONAISUUDET!B$8:C$206,2,FALSE)) = TRUE, \"\", VLOOKUP(B18,OPINTOKOKONAISUUDET!B$8:C$206,2,FALSE))","v":""}]
[null,13,{"$f":"IF(ISNA(VLOOKUP(B19,OPINTOKOKONAISUUDET!B$8:C$206,2,FALSE)) = TRUE, \"\", VLOOKUP(B19,OPINTOKOKONAISUUDET!B$8:C$206,2,FALSE))","v":""}]
[null,14,{"$f":"IF(ISNA(VLOOKUP(B20,OPINTOKOKONAISUUDET!B$8:C$206,2,FALSE)) = TRUE, \"\", VLOOKUP(B20,OPINTOKOKONAISUUDET!B$8:C$206,2,FALSE))","v":""}]
[null,15,{"$f":"IF(ISNA(VLOOKUP(B21,OPINTOKOKONAISUUDET!B$8:C$206,2,FALSE)) = TRUE, \"\", VLOOKUP(B21,OPINTOKOKONAISUUDET!B$8:C$206,2,FALSE))","v":""}]
[null,16,{"$f":"IF(ISNA(VLOOKUP(B22,OPINTOKOKONAISUUDET!B$8:C$206,2,FALSE)) = TRUE, \"\", VLOOKUP(B22,OPINTOKOKONAISUUDET!B$8:C$206,2,FALSE))","v":""}]
[null,17,{"$f":"IF(ISNA(VLOOKUP(B23,OPINTOKOKONAISUUDET!B$8:C$206,2,FALSE)) = TRUE, \"\", VLOOKUP(B23,OPINTOKOKONAISUUDET!B$8:C$206,2,FALSE))","v":""}]
[null,18,{"$f":"IF(ISNA(VLOOKUP(B24,OPINTOKOKONAISUUDET!B$8:C$206,2,FALSE)) = TRUE, \"\", VLOOKUP(B24,OPINTOKOKONAISUUDET!B$8:C$206,2,FALSE))","v":""}]
[null,19,{"$f":"IF(ISNA(VLOOKUP(B25,OPINTOKOKONAISUUDET!B$8:C$206,2,FALSE)) = TRUE, \"\", VLOOKUP(B25,OPINTOKOKONAISUUDET!B$8:C$206,2,FALSE))","v":""}]
[null,20,{"$f":"IF(ISNA(VLOOKUP(B26,OPINTOKOKONAISUUDET!B$8:C$206,2,FALSE)) = TRUE, \"\", VLOOKUP(B26,OPINTOKOKONAISUUDET!B$8:C$206,2,FALSE))","v":""}]
[null,21,{"$f":"IF(ISNA(VLOOKUP(B27,OPINTOKOKONAISUUDET!B$8:C$206,2,FALSE)) = TRUE, \"\", VLOOKUP(B27,OPINTOKOKONAISUUDET!B$8:C$206,2,FALSE))","v":""}]
[null,22,{"$f":"IF(ISNA(VLOOKUP(B28,OPINTOKOKONAISUUDET!B$8:C$206,2,FALSE)) = TRUE, \"\", VLOOKUP(B28,OPINTOKOKONAISUUDET!B$8:C$206,2,FALSE))","v":""}]
[null,23,{"$f":"IF(ISNA(VLOOKUP(B29,OPINTOKOKONAISUUDET!B$8:C$206,2,FALSE)) = TRUE, \"\", VLOOKUP(B29,OPINTOKOKONAISUUDET!B$8:C$206,2,FALSE))","v":""}]
[null,24,{"$f":"IF(ISNA(VLOOKUP(B30,OPINTOKOKONAISUUDET!B$8:C$206,2,FALSE)) = TRUE, \"\", VLOOKUP(B30,OPINTOKOKONAISUUDET!B$8:C$206,2,FALSE))","v":""}]
[null,25,{"$f":"IF(ISNA(VLOOKUP(B31,OPINTOKOKONAISUUDET!B$8:C$206,2,FALSE)) = TRUE, \"\", VLOOKUP(B31,OPINTOKOKONAISUUDET!B$8:C$206,2,FALSE))","v":""}]
[null,26,{"$f":"IF(ISNA(VLOOKUP(B32,OPINTOKOKONAISUUDET!B$8:C$206,2,FALSE)) = TRUE, \"\", VLOOKUP(B32,OPINTOKOKONAISUUDET!B$8:C$206,2,FALSE))","v":""}]
[null,27,{"$f":"IF(ISNA(VLOOKUP(B33,OPINTOKOKONAISUUDET!B$8:C$206,2,FALSE)) = TRUE, \"\", VLOOKUP(B33,OPINTOKOKONAISUUDET!B$8:C$206,2,FALSE))","v":""}]
[null,28,{"$f":"IF(ISNA(VLOOKUP(B34,OPINTOKOKONAISUUDET!B$8:C$206,2,FALSE)) = TRUE, \"\", VLOOKUP(B34,OPINTOKOKONAISUUDET!B$8:C$206,2,FALSE))","v":""}]
[null,29,{"$f":"IF(ISNA(VLOOKUP(B35,OPINTOKOKONAISUUDET!B$8:C$206,2,FALSE)) = TRUE, \"\", VLOOKUP(B35,OPINTOKOKONAISUUDET!B$8:C$206,2,FALSE))","v":""}]
[null,30,{"$f":"IF(ISNA(VLOOKUP(B36,OPINTOKOKONAISUUDET!B$8:C$206,2,FALSE)) = TRUE, \"\", VLOOKUP(B36,OPINTOKOKONAISUUDET!B$8:C$206,2,FALSE))","v":""}]
[null,31,{"$f":"IF(ISNA(VLOOKUP(B37,OPINTOKOKONAISUUDET!B$8:C$206,2,FALSE)) = TRUE, \"\", VLOOKUP(B37,OPINTOKOKONAISUUDET!B$8:C$206,2,FALSE))","v":""}]
[null,32,{"$f":"IF(ISNA(VLOOKUP(B38,OPINTOKOKONAISUUDET!B$8:C$206,2,FALSE)) = TRUE, \"\", VLOOKUP(B38,OPINTOKOKONAISUUDET!B$8:C$206,2,FALSE))","v":""}]
[null,33,{"$f":"IF(ISNA(VLOOKUP(B39,OPINTOKOKONAISUUDET!B$8:C$206,2,FALSE)) = TRUE, \"\", VLOOKUP(B39,OPINTOKOKONAISUUDET!B$8:C$206,2,FALSE))","v":""}]
[null,34,{"$f":"IF(ISNA(VLOOKUP(B40,OPINTOKOKONAISUUDET!B$8:C$206,2,FALSE)) = TRUE, \"\", VLOOKUP(B40,OPINTOKOKONAISUUDET!B$8:C$206,2,FALSE))","v":""}]
[null,35,{"$f":"IF(ISNA(VLOOKUP(B41,OPINTOKOKONAISUUDET!B$8:C$206,2,FALSE)) = TRUE, \"\", VLOOKUP(B41,OPINTOKOKONAISUUDET!B$8:C$206,2,FALSE))","v":""}]
[null,36,{"$f":"IF(ISNA(VLOOKUP(B42,OPINTOKOKONAISUUDET!B$8:C$206,2,FALSE)) = TRUE, \"\", VLOOKUP(B42,OPINTOKOKONAISUUDET!B$8:C$206,2,FALSE))","v":""}]
[null,37,{"$f":"IF(ISNA(VLOOKUP(B43,OPINTOKOKONAISUUDET!B$8:C$206,2,FALSE)) = TRUE, \"\", VLOOKUP(B43,OPINTOKOKONAISUUDET!B$8:C$206,2,FALSE))","v":""}]
[null,38,{"$f":"IF(ISNA(VLOOKUP(B44,OPINTOKOKONAISUUDET!B$8:C$206,2,FALSE)) = TRUE, \"\", VLOOKUP(B44,OPINTOKOKONAISUUDET!B$8:C$206,2,FALSE))","v":""}]
[null,39,{"$f":"IF(ISNA(VLOOKUP(B45,OPINTOKOKONAISUUDET!B$8:C$206,2,FALSE)) = TRUE, \"\", VLOOKUP(B45,OPINTOKOKONAISUUDET!B$8:C$206,2,FALSE))","v":""}]
[null,40,{"$f":"IF(ISNA(VLOOKUP(B46,OPINTOKOKONAISUUDET!B$8:C$206,2,FALSE)) = TRUE, \"\", VLOOKUP(B46,OPINTOKOKONAISUUDET!B$8:C$206,2,FALSE))","v":""}]
[null,41,{"$f":"IF(ISNA(VLOOKUP(B47,OPINTOKOKONAISUUDET!B$8:C$206,2,FALSE)) = TRUE, \"\", VLOOKUP(B47,OPINTOKOKONAISUUDET!B$8:C$206,2,FALSE))","v":""}]
[null,42,{"$f":"IF(ISNA(VLOOKUP(B48,OPINTOKOKONAISUUDET!B$8:C$206,2,FALSE)) = TRUE, \"\", VLOOKUP(B48,OPINTOKOKONAISUUDET!B$8:C$206,2,FALSE))","v":""}]
[null,43,{"$f":"IF(ISNA(VLOOKUP(B49,OPINTOKOKONAISUUDET!B$8:C$206,2,FALSE)) = TRUE, \"\", VLOOKUP(B49,OPINTOKOKONAISUUDET!B$8:C$206,2,FALSE))","v":""}]
[null,44,{"$f":"IF(ISNA(VLOOKUP(B50,OPINTOKOKONAISUUDET!B$8:C$206,2,FALSE)) = TRUE, \"\", VLOOKUP(B50,OPINTOKOKONAISUUDET!B$8:C$206,2,FALSE))","v":""}]
[null,45,{"$f":"IF(ISNA(VLOOKUP(B51,OPINTOKOKONAISUUDET!B$8:C$206,2,FALSE)) = TRUE, \"\", VLOOKUP(B51,OPINTOKOKONAISUUDET!B$8:C$206,2,FALSE))","v":""}]
[null,46,{"$f":"IF(ISNA(VLOOKUP(B52,OPINTOKOKONAISUUDET!B$8:C$206,2,FALSE)) = TRUE, \"\", VLOOKUP(B52,OPINTOKOKONAISUUDET!B$8:C$206,2,FALSE))","v":""}]
[null,47,{"$f":"IF(ISNA(VLOOKUP(B53,OPINTOKOKONAISUUDET!B$8:C$206,2,FALSE)) = TRUE, \"\", VLOOKUP(B53,OPINTOKOKONAISUUDET!B$8:C$206,2,FALSE))","v":""}]
[null,48,{"$f":"IF(ISNA(VLOOKUP(B54,OPINTOKOKONAISUUDET!B$8:C$206,2,FALSE)) = TRUE, \"\", VLOOKUP(B54,OPINTOKOKONAISUUDET!B$8:C$206,2,FALSE))","v":""}]
[null,49,{"$f":"IF(ISNA(VLOOKUP(B55,OPINTOKOKONAISUUDET!B$8:C$206,2,FALSE)) = TRUE, \"\", VLOOKUP(B55,OPINTOKOKONAISUUDET!B$8:C$206,2,FALSE))","v":""}]
[null,50,{"$f":"IF(ISNA(VLOOKUP(B56,OPINTOKOKONAISUUDET!B$8:C$206,2,FALSE)) = TRUE, \"\", VLOOKUP(B56,OPINTOKOKONAISUUDET!B$8:C$206,2,FALSE))","v":""}]

{"sheet":"7. LUOKKA","index":2,"n_rows":15,"n_cols":10,"rows_kept":15,"cut":false,"hidden":false,"merged":[]}
[]
[null,"Lukuvuoden arvioitavat tavoitteet",null,null,null,"Sisällöt",null,null,"Arviointitavat"]
[null,null,"Suunnitelmassa kertaa",null,null,null,"Suunnitelmassa kertaa",null,null,"Suunnitelmassa kertaa"]
[null,"KUVATAIDE"]
[null,"T1",{"$f":"COUNTIF(OPINTOKOKONAISUUDET!$D$8:$D$252,\"T1*\")","v":0},null,null,"S1",{"$f":"COUNTIF(OPINTOKOKONAISUUDET!$G$8:$G$252,\"S1*\")","v":0},null,"Opettajan arviointi",{"$f":"COUNTIF(OPINTOKOKONAISUUDET!$I$8:$I$252,\"Opettajan arviointi\")","v":0}]
[null,"T2",{"$f":"COUNTIF(OPINTOKOKONAISUUDET!$D$8:$D$252,\"T2*\")","v":0},null,null,"S2",{"$f":"COUNTIF(OPINTOKOKONAISUUDET!$G$8:$G$252,\"S2*\")","v":0},null,"Itsearviointi",{"$f":"COUNTIF(OPINTOKOKONAISUUDET!$I$8:$I$252,\"Itsearviointi\")","v":0}]
[null,"T3",{"$f":"COUNTIF(OPINTOKOKONAISUUDET!$D$8:$D$252,\"T3*\")","v":0},null,null,"S3",{"$f":"COUNTIF(OPINTOKOKONAISUUDET!$G$8:$G$252,\"S3*\")","v":0},null,"Vertaisarviointi",{"$f":"COUNTIF(OPINTOKOKONAISUUDET!$I$8:$I$252,\"Vertaisarviointi\")","v":0}]
[null,"T4",{"$f":"COUNTIF(OPINTOKOKONAISUUDET!$D$8:$D$252,\"T4*\")","v":0},null,null,null,null,null,"Ryhmäarviointi",{"$f":"COUNTIF(OPINTOKOKONAISUUDET!$I$8:$I$252,\"Ryhmäarviointi\")","v":0}]
[null,"T5",{"$f":"COUNTIF(OPINTOKOKONAISUUDET!$D$8:$D$252,\"T5*\")","v":0},null,null,null,null,null,"Muu arviointi",{"$f":"COUNTIF(OPINTOKOKONAISUUDET!$I$8:$I$252,\"Muu arviointi\")","v":0}]
[null,"T6",{"$f":"COUNTIF(OPINTOKOKONAISUUDET!$D$8:$D$252,\"T6*\")","v":0}]
[null,"T7",{"$f":"COUNTIF(OPINTOKOKONAISUUDET!$D$8:$D$252,\"T7*\")","v":0}]
[null,"T8",{"$f":"COUNTIF(OPINTOKOKONAISUUDET!$D$8:$D$252,\"T8*\")","v":0}]
[null,"T9",{"$f":"COUNTIF(OPINTOKOKONAISUUDET!$D$8:$D$252,\"T9*\")","v":0}]
[null,"T10",{"$f":"COUNTIF(OPINTOKOKONAISUUDET!$D$8:$D$252,\"T10*\")","v":0}]
[null,"T11",{"$f":"COUNTIF(OPINTOKOKONAISUUDET!$D$8:$D$252,\"T11*\")","v":0}]

{"sheet":"8. LUOKKA","index":3,"n_rows":15,"n_cols":10,"rows_kept":15,"cut":false,"hidden":false,"merged":[]}
[]
[null,"Lukuvuoden arvioitavat tavoitteet",null,null,null,"Sisällöt",null,null,"Arviointitavat"]
[null,null,"Suunnitelmassa kertaa",null,null,null,"Suunnitelmassa kertaa",null,null,"Suunnitelmassa kertaa"]
[null,"KUVATAIDE"]
[null,"T1",{"$f":"COUNTIF(OPINTOKOKONAISUUDET!$D$8:$D$252,\"T1*\")","v":0},null,null,"S1",{"$f":"COUNTIF(OPINTOKOKONAISUUDET!$G$8:$G$252,\"S1*\")","v":0},null,"Opettajan arviointi",{"$f":"COUNTIF(OPINTOKOKONAISUUDET!$I$8:$I$252,\"Opettajan arviointi\")","v":0}]
[null,"T2",{"$f":"COUNTIF(OPINTOKOKONAISUUDET!$D$8:$D$252,\"T2*\")","v":0},null,null,"S2",{"$f":"COUNTIF(OPINTOKOKONAISUUDET!$G$8:$G$252,\"S2*\")","v":0},null,"Itsearviointi",{"$f":"COUNTIF(OPINTOKOKONAISUUDET!$I$8:$I$252,\"Itsearviointi\")","v":0}]
[null,"T3",{"$f":"COUNTIF(OPINTOKOKONAISUUDET!$D$8:$D$252,\"T3*\")","v":0},null,null,"S3",{"$f":"COUNTIF(OPINTOKOKONAISUUDET!$G$8:$G$252,\"S3*\")","v":0},null,"Vertaisarviointi",{"$f":"COUNTIF(OPINTOKOKONAISUUDET!$I$8:$I$252,\"Vertaisarviointi\")","v":0}]
[null,"T4",{"$f":"COUNTIF(OPINTOKOKONAISUUDET!$D$8:$D$252,\"T4*\")","v":0},null,null,null,null,null,"Ryhmäarviointi",{"$f":"COUNTIF(OPINTOKOKONAISUUDET!$I$8:$I$252,\"Ryhmäarviointi\")","v":0}]
[null,"T5",{"$f":"COUNTIF(OPINTOKOKONAISUUDET!$D$8:$D$252,\"T5*\")","v":0},null,null,null,null,null,"Muu arviointi",{"$f":"COUNTIF(OPINTOKOKONAISUUDET!$I$8:$I$252,\"Muu arviointi\")","v":0}]
[null,"T6",{"$f":"COUNTIF(OPINTOKOKONAISUUDET!$D$8:$D$252,\"T6*\")","v":0}]
[null,"T7",{"$f":"COUNTIF(OPINTOKOKONAISUUDET!$D$8:$D$252,\"T7*\")","v":0}]
[null,"T8",{"$f":"COUNTIF(OPINTOKOKONAISUUDET!$D$8:$D$252,\"T8*\")","v":0}]
[null,"T9",{"$f":"COUNTIF(OPINTOKOKONAISUUDET!$D$8:$D$252,\"T9*\")","v":0}]
[null,"T10",{"$f":"COUNTIF(OPINTOKOKONAISUUDET!$D$8:$D$252,\"T10*\")","v":0}]
[null,"T11",{"$f":"COUNTIF(OPINTOKOKONAISUUDET!$D$8:$D$252,\"T11*\")","v":0}]

{"sheet":"9. LUOKKA","index":4,"n_rows":15,"n_cols":10,"rows_kept":15,"cut":false,"hidden":false,"merged":[]}
[]
[null,"Lukuvuoden arvioitavat tavoitteet",null,null,null,"Sisällöt",null,null,"Arviointitavat"]
[null,null,"Suunnitelmassa kertaa",null,null,null,"Suunnitelmassa kertaa",null,null,"Suunnitelmassa kertaa"]
[null,"KUVATAIDE"]
[null,"T1",{"$f":"COUNTIF(OPINTOKOKONAISUUDET!$D$8:$D$252,\"T1*\")","v":0},null,null,"S1",{"$f":"COUNTIF(OPINTOKOKONAISUUDET!$G$8:$G$252,\"S1*\")","v":0},null,"Opettajan arviointi",{"$f":"COUNTIF(OPINTOKOKONAISUUDET!$I$8:$I$252,\"Opettajan arviointi\")","v":0}]
[null,"T2",{"$f":"COUNTIF(OPINTOKOKONAISUUDET!$D$8:$D$252,\"T2*\")","v":0},null,null,"S2",{"$f":"COUNTIF(OPINTOKOKONAISUUDET!$G$8:$G$252,\"S2*\")","v":0},null,"Itsearviointi",{"$f":"COUNTIF(OPINTOKOKONAISUUDET!$I$8:$I$252,\"Itsearviointi\")","v":0}]
[null,"T3",{"$f":"COUNTIF(OPINTOKOKONAISUUDET!$D$8:$D$252,\"T3*\")","v":0},null,null,"S3",{"$f":"COUNTIF(OPINTOKOKONAISUUDET!$G$8:$G$252,\"S3*\")","v":0},null,"Vertaisarviointi",{"$f":"COUNTIF(OPINTOKOKONAISUUDET!$I$8:$I$252,\"Vertaisarviointi\")","v":0}]
[null,"T4",{"$f":"COUNTIF(OPINTOKOKONAISUUDET!$D$8:$D$252,\"T4*\")","v":0},null,null,null,null,null,"Ryhmäarviointi",{"$f":"COUNTIF(OPINTOKOKONAISUUDET!$I$8:$I$252,\"Ryhmäarviointi\")","v":0}]
[null,"T5",{"$f":"COUNTIF(OPINTOKOKONAISUUDET!$D$8:$D$252,\"T5*\")","v":0},null,null,null,null,null,"Muu arviointi",{"$f":"COUNTIF(OPINTOKOKONAISUUDET!$I$8:$I$252,\"Muu arviointi\")","v":0}]
[null,"T6",{"$f":"COUNTIF(OPINTOKOKONAISUUDET!$D$8:$D$252,\"T6*\")","v":0}]
[null,"T7",{"$f":"COUNTIF(OPINTOKOKONAISUUDET!$D$8:$D$252,\"T7*\")","v":0}]
[null,"T8",{"$f":"COUNTIF(OPINTOKOKONAISUUDET!$D$8:$D$252,\"T8*\")","v":0}]
[null,"T9",{"$f":"COUNTIF(OPINTOKOKONAISUUDET!$D$8:$D$252,\"T9*\")","v":0}]
[null,"T10",{"$f":"COUNTIF(OPINTOKOKONAISUUDET!$D$8:$D$252,\"T10*\")","v":0}]
[null,"T11",{"$f":"COUNTIF(OPINTOKOKONAISUUDET!$D$8:$D$252,\"T11*\")","v":0}]

{"sheet":"TAVOITTEET","index":5,"n_rows":17,"n_cols":4,"rows_kept":17,"cut":false,"hidden":false,"merged":[]}
[null,"TAVOITE","ARVIOINNIN KOHDE","TAVOITETEKSTI"]
[null,"T1 KUVATAIDE","Taiteen, ympäristön ja muun visuaalisen kulttuurin havainnoiminen","kannustaa oppilasta havainnoimaan, taidetta, ympäristöä ja muuta visuaalista kulttuuria moniaistisesti ja käyttämään monipuolisesti kuvallisen tuottamisen menetelmiä"]
[null,"T2 KUVATAIDE","Havaintojen ja ajattelun vaikutusten pohtiminen","rohkaista oppilasta keskustelemaan omista ja muiden havainnoista ja ajatuksista sekä perustelemaan näkemyksiään"]
[null,"T3 KUVATAIDE","Havaintojen ja ajatusten kuvallinen ilmaiseminen","innostaa oppilasta ilmaisemaan havaintojaan ja ajatuksiaan kuvallisesti erilaisia välineitä ja tiedon tuottamisen tapoja käyttäen eri ympäristöissä"]
[null,"T4 KUVATAIDE","Kuvailmaisun taitojen syventäminen","ohjata oppilasta soveltamaan erilaisia materiaaleja, tekniikoita ja ilmaisun keinoja sekä syventämään kuvallisen tuottamisen taitojaan"]
[null,"T5 KUVATAIDE","Tutkivan lähestymistavan käyttäminen","ohjata oppilasta tutkivaan lähestymistapaan itsenäisessä ja yhteistoiminnallisessa kuvallisessa työskentelyssä"]
[null,"T6 KUVATAIDE","Kuvallisen tuottamisen avulla vaikuttaminen"," rohkaista oppilasta ilmaisemaan mielipiteitään sekä soveltamaan kuvallisen viestinnän ja vaikuttamisen keinoja omissa kuvissaan"]
[null,"T7 KUVATAIDE","Kuvatulkinnan menetelmien soveltaminen","ohjata oppilasta soveltamaan kuvallisia, sanallisia ja muita kuvatulkinnan menetelmiä"]
[null,"T8 KUVATAIDE","Visuaalisen kulttuurin merkityksen tarkasteleminen","ohjata oppilasta tarkastelemaan taiteen ja muun visuaalisen kulttuurin merkitystä yksilölle, yhteisölle ja yhteiskunnalle historian ja kulttuurin näkökulmista"]
[null,"T9 KUVATAIDE","Kulttuuristen kuvailmaisun tapojen soveltaminen","innostaa oppilasta soveltamaan eri aikojen ja kulttuurien kuvailmaisun tapoja kuvallisessa tuottamisessaan"]
[null,"T10 KUVATAIDE","Näkemysten esittäminen","ohjata oppilasta ottamaan kantaa taiteessa, ympäristössä ja muussa visuaalisessa kulttuurissa ilmeneviin arvoihin"]
[null,"T11 KUVATAIDE","Näkemysten esittäminen"," kannustaa oppilasta ottamaan kuvailmaisussaan huomioon kulttuurinen moninaisuus ja kestävä kehitys sekä vaikuttamaan kuvien avulla"]
[]
[null,"Sisällöt"]
[null,"S1 Omat kuvakulttuurit"]
[null,"S2 Ympäristön kuvakulttuurit"]
[null,"S3 Taiteen maailmat"]

{"sheet":"TIEDOT","index":6,"n_rows":59,"n_cols":2,"rows_kept":59,"cut":false,"hidden":false,"merged":[]}
[]
[null,"ARVIOINTI"]
[null,"Opettajan arviointi"]
[null,"Itsearviointi"]
[null,"Vertaisarviointi"]
[null,"Ryhmäarviointi"]
[null,"Muu arviointi"]
[]
[null,"OPINTOKOKONAISUUDET"]
[null,1]
[null,2]
[null,3]
[null,4]
[null,5]
[null,6]
[null,7]
[null,8]
[null,9]
[null,10]
[null,11]
[null,12]
[null,13]
[null,14]
[null,15]
[null,16]
[null,17]
[null,18]
[null,19]
[null,20]
[null,21]
[null,22]
[null,23]
[null,24]
[null,25]
[null,26]
[null,27]
[null,28]
[null,29]
[null,30]
[null,31]
[null,32]
[null,33]
[null,34]
[null,35]
[null,36]
[null,37]
[null,38]
[null,39]
[null,40]
[null,41]
[null,42]
[null,43]
[null,44]
[null,45]
[null,46]
[null,47]
[null,48]
[null,49]
[null,50]

{"sheet":"LUKUVUOSITIEDOT","index":7,"n_rows":18,"n_cols":48,"rows_kept":18,"cut":false,"hidden":false,"merged":[]}
[]
[null,null,null,"Lukuvuosi"]
[]
[null,null,null,null,"VIIKOT"]
[null,"2019-2020",null,"2019-2020",5,12,19,26,2,9,16,23,30,7,14,21,28,4,11,18,25,2,9,16,23,30,6,13,20,27,3,10,17,24,2,9,16,23,30,6,13,20,27,4,11,18,25,1]
[null,"2020-2021",null,null,32,33,34,35,36,37,38,39,40,41,42,43,44,45,46,47,48,49,50,51,52,1,2,3,4,5,6,7,8,9,10,11,12,13,14,15,16,17,18,19,20,21,22,23]
[null,"2021-2022"]
[null,"2022-2023",null,null,"VIIKOT"]
[null,null,null,"2020-2021",3,10,17,24,31,7,14,21,28,5,12,19,26,2,9,16,23,30,7,14,21,28,4,11,18,25,1,8,15,22,1,8,15,22,29,5,12,19,26,3,10,17,24,31]
[null,null,null,null,32,33,34,35,36,37,38,39,40,41,42,43,44,45,46,47,48,49,50,51,52,1,2,3,4,5,6,7,8,9,10,11,12,13,14,15,16,17,18,19,20,21,22,23]
[]
[null,null,null,null,"VIIKOT"]
[null,null,null,"2021-2022",9,16,23,30,6,13,20,27,4,11,18,25,1,8,15,22,29,6,13,20,27,3,10,17,24,31,7,14,21,28,7,14,21,28,4,11,18,25,2,9,16,23,30,6]
[null,null,null,null,32,33,34,35,36,37,38,39,40,41,42,43,44,45,46,47,48,49,50,51,52,1,2,3,4,5,6,7,8,9,10,11,12,13,14,15,16,17,18,19,20,21,22,23]
[]
[null,null,null,null,"VIIKOT"]
[null,null,null,"2022-2023",8,15,22,29,5,12,19,26,3,10,17,24,31,7,14,21,28,5,12,19,26,2,9,16,23,30,6,13,20,27,6,13,20,27,3,10,17,24,1,8,15,22,29,5]
[null,null,null,null,32,33,34,35,36,37,38,39,40,41,42,43,44,45,46,47,48,49,50,51,52,1,2,3,4,5,6,7,8,9,10,11,12,13,14,15,16,17,18,19,20,21,22,23]